Workbook

Sheet 310 -244
A2: Расчет (обоснование) расходов на приобретение основных средств на 2022 год
A4: Код видов расходов 244 Источник финансового обеспечения: субсидии из областного бюджета на финансовое обеспечение выполнения Учреждением государственного задания на оказание государственных услуг
A6: Увеличение стоимости основных средтв (КОСГУ 310)
A8: № п/п | B8: Наименование расходов | C8: Количество | D8: Средняя стоимость | E8: Сумма, руб.
A9: 1 | B9: Стенка игровая(угловая) | C9: 1 | D9: 35000 | E9: 35000
A10: 2 | B10: уголок для спортинвентаря | C10: 1 | D10: 15000 | E10: =C10*D10 -> 15000
A11: 3 | B11: уголок природы (модуль) | C11: 1 | D11: 15000 | E11: 15000
A12: 4 | B12: стулья регулируемые ростовая группа 2-4 | C12: 6 | D12: 2500 | E12: 15000
A13: 5 | B13: стол-транформер (регулируемый трапеция) | C13: 4 | D13: 5000 | E13: 20000
A14: 6 | B14: Шкаф для хоз. инвентаря в умывальник (для тазов мытья игрушек) | C14: 1 | D14: 20000 | E14: 20000
A15: 7 | B15: Шкаф 2 х створ для одежды | C15: 1 | D15: 12000 | E15: 12000
A16: 8 | B16: Стулья из кожазам с высокой спинкой | C16: 5 | D16: 2500 | E16: 12500
A17: 9 | B17: Шкаф 2 х створ для одежды | C17: 1 | D17: 11550.5 | E17: 11550.5
A18: =A17+1 -> 10 | B18: Тумбочка прикроватная | C18: 24 | D18: 4000 | E18: 96000
A19: 11 | B19: Кровать ЛДСП на металическом каркасе | C19: 12 | D19: 12000 | E19: 144000
A20: 12 | B20: Диван тахта | C20: 2 | D20: 34000 | E20: 68000
A21: 13 | B21: Стол для учителя | C21: 4 | D21: 6000 | E21: 24000
A22: 14 | B22: Мойка 3-х секционная | C22: 1 | D22: 12000 | E22: 12000
A23: 15 | B23: Гарнитур кухонный (навесные шкафы2,4 м.) | C23: 1 | D23: 40000 | E23: 40000
A24: 16 | B24: Гарнитур кухонный (мойка для рук) | C24: 1 | D24: 8000 | E24: 8000
A25: =A24+1 -> 17 | B25: Шкаф вытяжной (процедурный кабинет) | C25: 1 | D25: 30000 | E25: 30000
A26: =A25+1 -> 18 | B26: Сухожаровой шкаф в стерелизационую ( для сушки стома. инст.) | C26: 1 | D26: 20000 | E26: 20000
A27: 19 | B27: Шкаф для медикаментов закрытый (дежурный кабинет) | C27: 1 | D27: 15000 | E27: 15000
A28: 20 | B28: Стол медицинский для мед. сестры(дежурный кабинет) | C28: 1 | D28: 12000 | E28: 12000
A29: 21 | B29: Диван-кушетка(дежурный кабинет) | C29: 1 | D29: 50000 | E29: 50000
A30: 22 | B30: Стул(мед. отделение) | C30: 7 | D30: 30000 | E30: 30000
A31: 23 | B31: Маты для кабинета ЛФК | C31: 5 | D31: 60000 | E31: 60000
A32: 24 | B32: Кушетка | C32: 1 | D32: 15000 | E32: 15000
A33: 25 | B33: Ножницы парикмахерские | C33: 1 | D33: 7000 | E33: 7000
A34: 26 | B34: Кипятильник электрический непрерывного действия КНЭ-50/100Б(50/100л/ч) | C34: 1 | D34: 12500 | E34: 12500
A35: 27 | B35: Плита электрическая ЭПК-47ЖШнержав. ТМ «Abat» | C35: 2 | D35: 45400 | E35: 90800
A36: 28 | B36: Машина протирочно-резательная МПР-350М-01 | C36: 1 | D36: 43500 | E36: 43500
A37: 29 | B37: Картофелечистка МОК-300М | C37: 1 | D37: 39500 | E37: 39500
A38: 30 | B38: Жарочный шкаф «Abat» ШЖЭ-3 | C38: 1 | D38: 62300 | E38: 62300
A39: 31 | B39: Шкаф холодильный Капри 1,5УМ ТМ «МХМ» | C39: 1 | D39: 46960 | E39: 46960
A40: 32 | B40: Шкаф электрический пекарно-жарочный ШЖЭ-2ТМ «Abat» | C40: 1 | D40: 47000 | E40: 47000
A41: 33 | B41: Мармит первых блюд ПМЭС-70КМ-01ТМ «Abat» | C41: 1 | D41: 47100 | E41: 47100
A42: 34 | B42: Мясорубка электрическая МИМ-300 | C42: 1 | D42: 41000 | E42: 41000
A43: 35 | B43: Универсальная машина УКМ-01 | C43: 1 | D43: 115785.5 | E43: 115785.5
A44: 36 | B44: Хлеборезка АХМ-300 А (Янычар) | C44: 1 | D44: 39000 | E44: 39000
A45: 37 | B45: Шкаф холодильный ШХ-370М ТМ «МХМ» | C45: 2 | D45: 28350 | E45: 56700
A46: 38 | B46: Вытяжка (2 зонта над плитами, 1 над жарочн. шкафом.) | C46: 2 | D46: 36947 | E46: 73894
A47: 39 | B47: Микроволновая печь | C47: 2 | D47: 11000 | E47: 22000
B48: Итого: | C48: Х | D48: Х | E48: =SUM(E9:E47) -> 1525090
B49: Предоставление всех видов услуг | C49: Разделение на услуги пропорционально, согласно занимаемым площадям | D49: 0
B50: Предоставление социально-бытовых услуг | C50: 32.4 | D50: =C50*D49/100 -> 0
B51: Предоставление социально-медицинских услуг | C51: 7.58 | D51: =C51*D49/100 -> 0
B52: Предоставление социально-психологических услуг | C52: 4.21 | D52: =C52*D49/100 -> 0
B53: Предоставление социально-педагогических услуг | C53: 24.86 | D53: =C53*D49/100 -> 0
B54: Предоставление-социально трудовых услуг | C54: 4.11 | D54: =C54*D49/100 -> 0
B55: Предоставление социально-правовых услуг | C55: 5.27 | D55: =C55*D49/100 -> 0
B56: Предоставление услуг в целяхповшения коммуникативного потенциала получателей социальных услуг, имеющих ограничения жизнидеятельности, в том числе детей инвалидов | C56: 21.57 | D56: =C56*D49/100 -> 0
C57: =SUM(C50:C56) -> 100 | D57: =SUM(D50:D56) -> 0
A59: Директор | E59: М.И. Жинько
A61: Главный бухгалтер | E61: А.А. Кирик
A63: Исполнители:
A64: Рыбакова О.В.

Sheet 310 остаток
A2: Расчет (обоснование) расходов на приобретение основных средств на 2022 год
A4: Код видов расходов 244 Источник финансового обеспечения: субсидии из областного бюджета на финансовое обеспечение выполнения Учреждением государственного задания на оказание государственных услуг
A6: Увеличение стоимости основных средтв (КОСГУ 310)
A8: № п/п | B8: Наименование расходов | C8: Количество | D8: Средняя стоимость | E8: Сумма, руб.
A9: 1 | B9: Остаток с 2021 года | C9: Х | D9: Х | E9: 261243
B10: Итого: | C10: Х | D10: Х | E10: =SUM(E9:E9) -> 261243
B11: Предоставление всех видов услуг | C11: Разделение на услуги пропорционально, согласно занимаемым площадям | D11: 0
B12: Предоставление социально-бытовых услуг | C12: 32.4 | D12: =C12*D11/100 -> 0
B13: Предоставление социально-медицинских услуг | C13: 7.58 | D13: =C13*D11/100 -> 0
B14: Предоставление социально-психологических услуг | C14: 4.21 | D14: =C14*D11/100 -> 0
B15: Предоставление социально-педагогических услуг | C15: 24.86 | D15: =C15*D11/100 -> 0
B16: Предоставление-социально трудовых услуг | C16: 4.11 | D16: =C16*D11/100 -> 0
B17: Предоставление социально-правовых услуг | C17: 5.27 | D17: =C17*D11/100 -> 0
B18: Предоставление услуг в целяхповшения коммуникативного потенциала получателей социальных услуг, имеющих ограничения жизнидеятельности, в том числе детей инвалидов | C18: 21.57 | D18: =C18*D11/100 -> 0
C19: =SUM(C12:C18) -> 100 | D19: =SUM(D12:D18) -> 0
A21: Директор | E21: М.И. Жинько
A23: Главный бухгалтер | E23: А.А. Кирик
A25: Исполнители:
A26: Рыбакова О.В.

Sheet 225
A1: Расчет (обоснование) расходов на оплату работ, услуг по содержанию имущества на 2022 год
A3: Код видов расходов 244 Источник финансового обеспечения: субсидии из областного бюджета на финансовое обеспечение выполнения Учреждением государственного задания на оказание государственных услуг
A5: Работы, услуги по содержанию имущества (КОСГУ 225)
A6: N п/п | B6: Наименование расходов | C6: Объект | D6: Количество работ (услуг) | E6: Стоимость работ (услуг), руб.
A7: 1 | B7: 2 | C7: 3 | D7: 4 | E7: 5
A8: 1 | B8: Техническое обслуживание системы передачи извещения ПАК "Стрелец-Мониторинг | C8: 1 | D8: 12 | E8: 18000
A9: =A8+1 -> 2 | B9: Диагностика и техническое обслуживание автомобильного транспорта | C9: 3 | D9: 3 | E9: 60000
A10: =A9+1 -> 3 | B10: Техническое обслуживание системы видеонаблюдения | C10: 1 | D10: 12 | E10: 28854
A11: 4 | B11: Услуги автовышки | C11: 1 | D11: 1 | E11: 8000
A12: =A11+1 -> 5 | B12: Проверка вентиляции и дымоходов (139 вентканалов и 2 дымохода | C12: 1 | D12: 2 | E12: 18000
A13: 6 | B13: Заправка и замена картриджей | C13: 1 | D13: 12 | E13: 70000
A14: 7 | B14: Тех.обслуживание комплекса тех.средств (тревожная кнопка) | C14: 1 | D14: 12 | E14: 17180
A15: 8 | B15: Дератизация, дезинсекция | C15: 1 | D15: 2 | E15: 46306
A16: 9 | B16: Уборка территории трактором | C16: 1 | D16: 6 | E16: 450000
A17: 10 | B17: Техническое обслуживание пожарной сигнализации и речевого оповещения | C17: 1 | D17: 12 | E17: 84000
A18: 11 | B18: Техническое обслуживание и ремонт газового оборудования и газопроводов внутр. | C18: 1 | D18: 12 | E18: 120000
A19: 12 | B19: Аварийно - диспетчерское обслуживание газопровода | C19: 1 | D19: 12 | E19: 20000
A20: 13 | B20: ТО и ремонт газового оборудования и газопроводов | C20: 1 | D20: 12 | E20: 12000
A21: 14 | B21: Техническое обслуживание медицинской техники | C21: 1 | D21: 1 | E21: 15000
A22: 15 | B22: Оперативно-техническое обслуживание ТП 112 двумя трансформаторами 400кВа | C22: 1 | D22: 12 | E22: 70000
A23: 16 | B23: Перезарадяка и ремонт огнетушителей | C23: 1 | D23: 1 | E23: 10000
A24: 17 | B24: Помывка окон в учреждении | C24: 1 | D24: 2 | E24: 222466
A25: =A24+1 -> 18 | B25: Утепление окон в учреждении | C25: 1 | D25: 1 | E25: 114058.83
A26: 19 | B26: Технические заключения для списания основных средств | C26: 1 | D26: 1 | E26: 20000
A27: 20 | B27: Лабораторные исследования воды | C27: 1 | D27: 2 | E27: 5000
A28: 21 | B28: Лабораторные исследования пищевых продуктов | C28: 1 | D28: 1 | E28: 11000
A29: 22 | B29: Поверка приборов КИП (манометры котельной и тепловых узлов) | C29: 1 | D29: 4 | E29: 58451.17
A30: 23 | B30: Проведение контроля эффективности работы стрелилизаторов 3 методами по 5 конт.точкам | C30: 1 | D30: 1 | E30: 6000
A31: 24 | B31: Поверка комплекса "Взлет" общего учета ГВС и отпления котельной | C31: 1 | D31: 1 | E31: 25000
A32: 25 | B32: Ремонт источника бесперебойного питания | C32: 1 | D32: 1 | E32: 17508
A33: 26 | B33: Проверка работоспособности котла КСВа 1.25 МВт и газовой горелки | C33: 1 | D33: 1 | E33: 19176
A34: 27 | B34: Проведение инструментального обследования котла КСВа-1.25 зав. № 173 | C34: 1 | D34: 1 | E34: 25000
A35: 28 | B35: Услуги по уборке и вывозу мусора с территории учреждения | C35: 1 | D35: 1 | E35: 166000
A36: 29 | B36: Установка терминала на автомобиль ГАЗ М 606 ТХ | C36: 1 | D36: 1 | E36: 45000
A37: 30 | B37: Прмывка системы канализации | C37: 1 | D37: 1 | E37: 2400000.67
B38: Всего по КОСГУ 225 | C38: x | D38: x | E38: =SUM(E8:E37) -> 4182000.67
A41: Директор | E41: М.И. Жинько
A43: Главный бухгалтер | E43: А.А. Кирик
A45: Исполнители:
A46: Рыбакова О.В.

Sheet 225 остаток
A1: Расчет (обоснование) расходов на оплату работ, услуг по содержанию имущества на 2022 год
A3: Код видов расходов 244 Источник финансового обеспечения: субсидии из областного бюджета на финансовое обеспечение выполнения Учреждением государственного задания на оказание государственных услуг
A5: Работы, услуги по содержанию имущества (КОСГУ 225)
A6: N п/п | B6: Наименование расходов | C6: Объект | D6: Количество работ (услуг) | E6: Стоимость работ (услуг), руб.
A7: 1 | B7: 2 | C7: 3 | D7: 4 | E7: 5
A8: 1 | B8: Остаток с 2021 года | C8: Х | D8: Х | E8: 40161.17
B9: Всего по КОСГУ 225 | C9: x | D9: x | E9: =SUM(E8:E8) -> 40161.17
A11: Директор | E11: М.И. Жинько
A13: Главный бухгалтер | E13: А.А. Кирик
A15: Исполнители:
A16: Рыбакова О.В.

Sheet 225-243
A1: Расчет (обоснование) расходов на оплату работ, услуг по содержанию имущества на 2022 год
A3: Код видов расходов 243 Источник финансового обеспечения: субсидии на иные цели
A5: Работы, услуги по содержанию имущества (КОСГУ 225)
A6: N п/п | B6: Наименование расходов | C6: Объект | D6: Количество работ (услуг) | E6: Стоимость работ (услуг), руб.
A7: 1 | B7: 2 | C7: 3 | D7: 4 | E7: 5
A8: 1 | B8: Ремонт коррекционно-образовательных отделений | C8: 2 | D8: 2 | E8: 4000000
A9: =A8+1 -> 2 | B9: Ремонт газовой котельной | C9: 3 | D9: 3 | E9: 4000000
A10: =A9+1 -> 3 | B10: Ремонт пищеблока | C10: 1 | D10: 1 | E10: 500000
B11: Всего по КОСГУ 225 | C11: x | D11: x | E11: =SUM(E8:E10) -> 8500000
A13: Директор | E13: М.И. Жинько
A15: Главный бухгалтер | E15: А.А. Кирик
A17: Исполнители:
A18: Рыбакова О.В.

Sheet 226
A1: Расчет (обоснование) расходов на оплату прочих работ, услуг на 2022 год
A3: Код видов расходов 244 Источник финансового обеспечения: субсидии из областного бюджета на финансовое обеспечение выполнения Учреждением государственного задания на оказание государственных услуг
A5: Прочие работы, услуги (КОСГУ 226)
A6: N п/п | B6: Наименование расходов | C6: Количество договоров | D6: Стоимость услуги, руб.
A7: 1 | B7: 2 | C7: 3 | D7: 4
A8: 1 | B8: Анализы воспитанников | C8: 1 | D8: 100000
A9: 2 | B9: Периодический медосмотр сотрудников | C9: 1 | D9: 250000
A10: 3 | B10: Сбор и обезвреживание медицинских отходов класса Б | C10: 1 | D10: 4000
A11: =A10+1 -> 4 | B11: Оформление личных медицинских книжек сотрудников | C11: 1 | D11: 50000
A12: =A11+1 -> 5 | B12: Тестирование 1С Больничная аптека | C12: 1 | D12: 30000
A13: 6 | B13: Обучение по программе "Обучение перед повторной проверкой знаний операторов котельн" | C13: 1 | D13: 10500
A14: 7 | B14: "Обучение по обслуживанию автоматизированных котельных, работающих на газообразном топливе" | C14: 1 | D14: 6600
A15: 8 | B15: Абонентское обслуживание ПП 1С ИТС Медицина | C15: 1 | D15: 37212
A16: 9 | B16: Оплата за обучение водителей | C16: 1 | D16: 4000
A17: 10 | B17: Акарицидная обработка от клещей | C17: 1 | D17: 3500
A18: 11 | B18: Судебно-психиатрическая экспертиза по недееспособности | C18: 1 | D18: 100000
A19: 12 | B19: Телематические услуги (хостинг сайта) | C19: 1 | D19: 4600
A20: 13 | B20: Передача доступа к онлайн-версии системы "Surdo-Onlain" | C20: 1 | D20: 19500
A21: 14 | B21: Обучение по охране труда работников организаций | C21: 1 | D21: 57000
A22: 15 | B22: Обучение по пожарной безопасности работников организаций | C22: 1 | D22: 30000
A23: 16 | B23: Обучение безопасным методам и приемам выполнения работ на высоте | C23: 1 | D23: 21000
A24: 17 | B24: Обучение по 44ФЗ | C24: 1 | D24: 20000
A25: 18 | B25: Противодействие коррупции — повышение квалификации руководителей, специалистов, государственных и муниципальных служащих на курсах антикоррупционного обучения (дистанционно) | C25: 1 | D25: 9000
A26: 19 | B26: Первичный медосмотр сотрудников | C26: 1 | D26: 100000
A27: 20 | B27: Охрана объектов | C27: 1 | D27: 103368
A28: 21 | B28: Подготовка специалистов для работы на паровых стерелизаторах | C28: 1 | D28: 4000
A29: 22 | B29: Права использования "Web-система СБИС" ЭТ-LITE Федеральный (5 электронных подписей) | C29: 1 | D29: 15000
A30: 23 | B30: Оплата за право использования и услуги абонентского обслуживания программы ЭВМ "Контур-Экстерн" | C30: 1 | D30: 8980
A31: 24 | B31: Право на использование Kaspersky Edition Securiti для бизнеса - Стандарптный Russian Edition 20-24 Node 1 year Educ | C31: 1 | D31: 13000
A32: 25 | B32: Программное обеспечение СКЗИ КриптоПро CSP версия 5.0 (отдел кадров) | C32: 1 | D32: 8100
A33: 26 | B33: Спецоценка условий труда | C33: 1 | D33: 21000
A34: 27 | B34: Фотоуслуги воспитаников | C34: 1 | D34: 3800
A35: 28 | B35: Программное обеспечение Тест Векслера, детский вариант | C35: 1 | D35: 16000
A36: 29 | B36: Программное обеспечение Тест Векслера, взрослый вариант | C36: 1 | D36: 18000
A37: 30 | B37: Обновление ПО Гранд-Смета | C37: 1 | D37: 25000
A38: 31 | B38: Приобретение системы "Консультант" 3 рабочих места | C38: 1 | D38: 161000
B39: Итого: | D39: =SUM(D8:D38) -> 1254160
A42: Директор | D42: М.И. Жинько
A44: Главный бухгалтер | D44: А.А. Кирик
A46: Испонители:
A47: Рыбакова О.В.

Sheet 226 остаток
A1: Расчет (обоснование) расходов на оплату прочих работ, услуг на 2022 год
A3: Код видов расходов 244 Источник финансового обеспечения: субсидии из областного бюджета на финансовое обеспечение выполнения Учреждением государственного задания на оказание государственных услуг
A5: Прочие работы, услуги (КОСГУ 226)
A6: N п/п | B6: Наименование расходов | C6: Количество договоров | D6: Стоимость услуги, руб.
A7: 1 | B7: 2 | C7: 3 | D7: 4
A8: 1 | B8: Остаток с 2021 года | C8: Х | D8: 0
B9: Итого: | D9: =SUM(D8:D8) -> 0
A11: Директор | D11: М.И.Жинько
A13: Главный бухгалтер | D13: А.А.Кирик
A15: Испонители:
A16: Рыбакова О.В.

Sheet 223 квр 244
B1: Расчет (обоснование) расходов на оплату коммунальных услуг на 2022 год
B2: Код видов расходов 244 Источник финансового обеспечения: субсидии из областного бюджета на финансовое обеспечение выполнения Учреждением государственного задания на оказание государственных услуг
B4: Расходы на оплату коммунальных услуг (КОСГУ 223)
B7: N п/п | C7: Наименование показателя | D7: Размер потребления ресурсов | E7: Тариф (с учетом НДС), руб. | F7: Сумма, руб.
B8: 1 | C8: 2 | D8: 3 | E8: 4 | F8: 6
B9: 1 | C9: Водоснабжение (м.куб.) | D9: 39284.3451 | E9: 32.94 | F9: =E9*D9 -> 1294026.328
B10: 2 | C10: ТКО (м.куб) | D10: 233.46 | E10: 659.61 | F10: 153995
C11: Всего по КОСГУ 223 | D11: х | E11: x | F11: =F9+F10 -> 1448021.328
B16: Директор | F16: М.И. Жинько
B18: Главный бухгалтер | F18: А.А. Кирик
B20: Испонители:
B21: Рыбакова О.В.

Sheet 223 квр 244 остаток
B1: Расчет (обоснование) расходов на оплату коммунальных услуг на 2022 год
B2: Код видов расходов 244 Источник финансового обеспечения: субсидии из областного бюджета на финансовое обеспечение выполнения Учреждением государственного задания на оказание государственных услуг
B4: Расходы на оплату коммунальных услуг (КОСГУ 223)
B7: N п/п | C7: Наименование показателя | D7: Размер потребления ресурсов | E7: Тариф (с учетом НДС), руб. | F7: Сумма, руб.
B8: 1 | C8: 2 | D8: 3 | E8: 4 | F8: 6
B9: 1 | C9: Остаток с 2021 года за декабрь Водоснабжение (м.куб.) | D9: 647.3742 | E9: 32.94 | F9: =E9*D9 -> 21324.50615
C10: Всего по КОСГУ 223 | D10: х | E10: x | F10: =SUM(F9:F9) -> 21324.50615
B15: Директор | F15: М.И. Жинько
B17: Главный бухгалтер | F17: А.А. Кирик
B20: Испонители:
B21: Рыбакова О.В.

Sheet 223 квр 247
B1: Расчет (обоснование) расходов на оплату коммунальных услуг на 2022 год
B2: Код видов расходов 247 Источник финансового обеспечения: субсидии из областного бюджета на финансовое обеспечение выполнения Учреждением государственного задания на оказание государственных услуг
B4: Расходы на оплату коммунальных услуг (КОСГУ 223)
B7: N п/п | C7: Наименование показателя | D7: Размер потребления ресурсов | E7: Тариф (с учетом НДС), руб. | F7: Сумма, руб.
B8: 1 | C8: 2 | D8: 3 | E8: 4 | F8: 6
B9: 1 | C9: Электроэнергия (кВт часов) | D9: 746501 | E9: 8.134215198 | F9: 6072200
B10: 2 | C10: Отопление (Гкал) | D10: 571.42 | E10: =F10/D10 -> 2075.181128 | F10: 1185800
B11: 3 | C11: Природный газ (тыс.м.куб.) | D11: 615.24 | E11: 6983.904 | F11: 4296800
C12: Всего по КОСГУ 223 | D12: х | E12: x | F12: =SUM(F9:F11) -> 11554800
B17: Директор | F17: М.И. Жинько
B19: Главный бухгалтер | F19: А.А. Кирик
B20: Испонители:
B21: Рыбакова О.В.

Sheet 223 квр 247 остаток
B1: Расчет (обоснование) расходов на оплату коммунальных услуг на 2022 год
B2: Код видов расходов 247 Источник финансового обеспечения: субсидии из областного бюджета на финансовое обеспечение выполнения Учреждением государственного задания на оказание государственных услуг
B4: Расходы на оплату коммунальных услуг (КОСГУ 223)
B7: N п/п | C7: Наименование показателя | D7: Размер потребления ресурсов | E7: Тариф (с учетом НДС), руб. | F7: Сумма, руб.
B8: 1 | C8: 2 | D8: 3 | E8: 4 | F8: 6
B9: 1 | C9: Остаток с 2021 года в т.ч. за декабрь Электроэнергия (кВт часов) | D9: 6347.7233 | E9: 8.134215198 | F9: =E9*D9 -> 51633.74734
C10: Всего по КОСГУ 223 | D10: х | E10: x | F10: =SUM(F9:F9) -> 51633.74734
B14: Директор | F14: М.И. Жинько
B16: Главный бухгалтер | F16: А.А. Кирик
B18: Испонители:
B19: Рыбакова О.В.

Sheet 221
A1: Расчет (обоснование) расходов на оплату услуг связи на 2022 год
A3: Код видов расходов 244 Источник финансового обеспечения: субсидии из областного бюджета на финансовое обеспечение выполнения Учреждением государственного задания на оказание государственных услуг
A5: Услуги связи (КОСГУ 221)
A6: N п/п | B6: Наименование расходов | C6: Количество | D6: Количество платежей в год | E6: Стоимость за единицу, руб. | F6: Сумма, руб. (гр. 3 x гр. 4 x гр. 5)
A7: 1 | B7: 2 | C7: 3 | D7: 4 | E7: 5 | F7: 6
A8: 1 | B8: Пользование сетью интернет | C8: 1 | D8: 12 | E8: 9000 | F8: =C8*D8*E8 -> 108000
A9: =A8+1 -> 2 | B9: Абонентская плата | C9: 13 | D9: 12 | E9: 250.91 | F9: 47174.4
A10: =A9+1 -> 3 | B10: Абонентская плата | C10: 1 | D10: 12 | E10: 249.6 | F10: =C10*D10*E10 -> 2995.2
A11: 4 | B11: Доставка звуковой программы по сети радиовещания | C11: 11 | D11: 12 | E11: 132 | F11: =C11*D11*E11 -> 17424
A12: 5 | B12: Внутризоновое соединение на абоненты сотовой и фиксированной связи (мин) | C12: 900 | D12: 12 | E12: 1.86 | F12: =C12*D12*E12 -> 20088
A13: 6 | B13: Местный трафик (повременная система) (мин) | C13: 2457 | D13: 12 | E13: 0.7 | F13: 20638.4
A14: 7 | B14: Абонентская плата за поддержку почтового ящика (домен) | C14: 1 | D14: 4 | E14: 420 | F14: 1680
A15: 8 | B15: Конверты маркированные (шт) | C15: 1000 | D15: 1 | E15: 32 | F15: =C15*E15 -> 32000
B16: Итого: | C16: x | D16: x | E16: x | F16: =SUM(F8:F15) -> 250000
A19: Директор | F19: М.И. Жинько
A21: Главный бухгалтер | F21: А.А. Кирик
A22: Испонители:
A23: Рыбакова О.В.

Sheet 221 остаток
A1: Расчет (обоснование) расходов на оплату услуг связи на 2022 год
A3: Код видов расходов 244 Источник финансового обеспечения: субсидии из областного бюджета на финансовое обеспечение выполнения Учреждением государственного задания на оказание государственных услуг
A5: Услуги связи (КОСГУ 221)
A6: N п/п | B6: Наименование расходов | C6: Количество | D6: Количество платежей в год | E6: Стоимость за единицу, руб. | F6: Сумма, руб. (гр. 3 x гр. 4 x гр. 5)
A7: 1 | B7: 2 | C7: 3 | D7: 4 | E7: 5 | F7: 6
A8: 1 | B8: Остаток с 2021 года | C8: Х | D8: Х | E8: 9581.18 | F8: =E8 -> 9581.18
B9: Итого: | C9: x | D9: x | E9: x | F9: =SUM(F8:F8) -> 9581.18
A11: Директор | F11: М.И. Жинько
A13: Главный бухгалтер | F13: А.А. Кирик
A14: Исполнители:
A15: Рыбакова О.В.

Sheet 211 и 213
A3: Расчет (обоснование) расходов на заработную плату, наисления на выплаты по оплате труда, социальные пособия и компенсации персоналу в денежной форме на 2022 год
A5: Код видов расходов 211,213 Источник финансового обеспечения: субсидии из областного бюджета на финансовое обеспечение выполнения Учреждением государственного задания на оказание государственных услуг
A7: Заработная плата (КОСГУ 211), Начисления на выплаты по оплате труда (КОСГУ 213, социальные пособия и компенсации персоналу в денежной форме (КОСГУ 266)
A9: Наименование должностей | B9: начислена з/пл | C9: 0.302 | D9: итого основ. | E9: итого вспом.
A10: 1.Социально-бытовые услуги
A11: 1. (зарплата КНС,котельной) | B11: 1399306 | C11: =SUM(B11*C9) -> 422590.412 | E11: =SUM(B11+C11) -> 1821896.412
A13: 2. сотр.пищеблока,сан.буф | B13: 1996300 | C13: =SUM(B13*C9) -> 602882.6 | D13: =SUM(B13:C13) -> 2599182.6
A14: 2. сотр.пищеблока, бухгалтер, зав.складом | B14: 1152378 | C14: =SUM(B14*C9) -> 348018.156 | E14: =SUM(B14+C14) -> 1500396.156
A17: 3. бух.,швея, прачка,с/х | B17: 2868417 | C17: =SUM(B17*C9) -> 866261.934 | E17: =SUM(B17+C17) -> 3734678.934
A19: 4. рук.кр, библиот., пелагог-орган.,воспитатель1/6,метод, зав.отд. | B19: 5557517 | C19: =SUM(B19*C9) -> 1678370.134 | D19: =SUM(B19:C19) -> 7235887.134
A23: 5. сан.палат, сан.банщ.,парикм. | B23: 29018928 | C23: 8910355 | D23: =SUM(B23:C23) -> 37929283
A26: 7. сан.уборщ | B26: 1690881 | C26: =SUM(B26*C9) -> 510646.062 | D26: =SUM(B26:C26) -> 2201527.062
A27: 7.уборщ.помещ | B27: 844563 | C27: =SUM(B27*C9) -> 255058.026 | E27: =SUM(B27+C27) -> 1099621.026
A28: прочий перс. | B28: 5625248 | C28: =SUM(B28*C9) -> 1698824.896 | E28: =SUM(B28+C28) -> 7324072.896
A29: Итого услуга 1 | B29: =SUM(B11:B28) -> 50153538 | C29: =SUM(C11:C28) -> 15293007.22 | D29: =SUM(D11:D27) -> 49965879.8 | E29: =SUM(E11:E28) -> 15480665.42
A30: основ. персонал | B30: =SUM(B13+B19+B23+B26) -> 38263626 | C30: =SUM(C13+C19+C23+C26) -> 11702253.8
A31: вспом.персонал | B31: =SUM(B11+B14+B17+B27+B28) -> 11889912 | C31: =SUM(C11+C14+C17+C27+C28) -> 3590753.424
A32: Итого услуга 1 с уменьшением на 5% | B32: =B33+B34 -> 47645861.1 | C32: =C33+C34 -> 14528356.86 | D32: =B33+C33 -> 47467585.81 | E32: =B34+C34 -> 14706632.15
A33: основ. персонал | B33: =B30/100*95 -> 36350444.7 | C33: =C30/100*95 -> 11117141.11
A34: вспом.персонал | B34: =B31/100*95 -> 11295416.4 | C34: =C31/100*95 -> 3411215.753
A35: 2.Социально-медицинские услуги
A36: 1. врачи, ср.м/п 3/4 | B36: 5211928 | C36: 1591512 | D36: =SUM(B36:C36) -> 6803440
A38: 2.медстр.ЛФК, массаж.,физио | B38: 1317893 | C38: =SUM(B38*C9) -> 398003.686 | D38: =SUM(B38:C38) -> 1715896.686
A40: 7. врач ЛФК, ФЗК | B40: 259451 | C40: =SUM(B40*C9) -> 78354.202 | D40: =SUM(B40:C40) -> 337805.202
A42: 9. водители 2/3 | B42: 332914 | C42: =SUM(B42*C9) -> 100540.028 | E42: =SUM(B42+C42) -> 433454.028
A44: прочий перс. | B44: 900204 | C44: =SUM(B44*C9) -> 271861.608 | E44: =SUM(B44+C44) -> 1172065.608
A45: Итого услуга 2 | B45: =SUM(B36:B44) -> 8022390 | C45: =SUM(C36:C44) -> 2440271.524 | D45: =SUM(D36:D43) -> 8857141.888 | E45: =SUM(E36:E44) -> 1605519.636
A46: основ. персонал | B46: =SUM(B36+B38+B40) -> 6789272 | C46: =SUM(C36+C38+C40) -> 2067869.888
A47: вспом.персонал | B47: =SUM(B42+B44) -> 1233118 | C47: =SUM(C42+C44) -> 372401.636
A48: Итого услуга 2 с уменьшением на 5% | B48: =B49+B50 -> 7621270.5 | C48: =C49+C50 -> 2318257.948 | D48: =B49+C49 -> 8414284.794 | E48: =B50+C50 -> 1525243.654
A49: основ. персонал | B49: =B46/100*95 -> 6449808.4 | C49: =C46/100*95 -> 1964476.394
A50: вспом.персонал | B50: =B47/100*95 -> 1171462.1 | C50: =C47/100*95 -> 353781.5542
A51: 3.Социально-психологические услуги
A52: 1. педагог-психолог | B52: 380787 | C52: =SUM(B52*C9) -> 114997.674 | D52: =SUM(B52:C52) -> 495784.674
A53: прочий перс. | B53: 48299 | C53: =SUM(B53*C9) -> 14586.298 | E53: =SUM(B53+C53) -> 62885.298
A54: Итого услуга 3 | B54: =SUM(B52:B53) -> 429086 | C54: =SUM(C52:C53) -> 129583.972 | D54: =SUM(D52:D53) -> 495784.674 | E54: =SUM(E52:E53) -> 62885.298
A55: основ. персонал | B55: =SUM(B52) -> 380787 | C55: =SUM(C52) -> 114997.674
A56: вспом.персонал | B56: =SUM(B53) -> 48299 | C56: =SUM(C53) -> 14586.298
A57: Итого услуга 3 с уменьшением на 5% | B57: =B58+B59 -> 407631.7 | C57: =C58+C59 -> 123104.7734 | D57: =B58+C58 -> 470995.4403 | E57: =B59+C59 -> 59741.0331
A58: основ. персонал | B58: =B55/100*95 -> 361747.65 | C58: =C55/100*95 -> 109247.7903
A59: вспом.персонал | B59: =B56/100*95 -> 45884.05 | C59: =C56/100*95 -> 13856.9831
A60: 4.Социально-педагогические услуги
A61: 1.воспит.3/6, учителя,инстр.физ. | B61: 12286052 | C61: =SUM(B61*C9) -> 3710387.704 | D61: =SUM(B61:C61) -> 15996439.7
A62: 1.зам.дир УВР,бух | B62: 431885 | C62: =SUM(B62*C9) -> 130429.27 | E62: =SUM(B62+C62) -> 562314.27
A63: прочий перс. | B63: 1607214 | C63: =SUM(B63*C9) -> 485378.628 | E63: =SUM(B63+C63) -> 2092592.628
A64: Итого услуга 4 | B64: =SUM(B61:B63) -> 14325151 | C64: =SUM(C61:C63) -> 4326195.602 | D64: =SUM(D61:D62) -> 15996439.7 | E64: =SUM(E61:E63) -> 2654906.898
A65: основ. персонал | B65: =SUM(B61) -> 12286052 | C65: =SUM(C61) -> 3710387.704
A66: вспом.персонал | B66: =SUM(B62+B63) -> 2039099 | C66: =SUM(C62+C63) -> 615807.898
A67: Итого услуга 4 с уменьшением на 5% | B67: =B68+B69 -> 13608893.45 | C67: =C68+C69 -> 4109885.822 | D67: =B68+C68 -> 15196617.72 | E67: =B69+C69 -> 2522161.553
A68: основ. персонал | B68: =B65/100*95 -> 11671749.4 | C68: =C65/100*95 -> 3524868.319
A69: вспом.персонал | B69: =B66/100*95 -> 1937144.05 | C69: =C66/100*95 -> 585017.5031
A70: 5.Социально-трудовые услуги
A71: 1. инструктор, мастер, восп1/6 | B71: 7698416 | C71: =SUM(B71*C9) -> 2324921.632 | D71: =SUM(B71:C71) -> 10023337.63
A73: 3. кадры | B73: 308358 | C73: =SUM(B73*C9) -> 93124.116 | E73: =SUM(B73+C73) -> 401482.116
A74: 3.соц.педагог(2) | B74: 978665 | C74: =SUM(B74*C9) -> 295556.83 | D74: =SUM(B74:C74) -> 1274221.83
A75: прочий перс. | B75: 1135531 | C75: =SUM(B75*C9) -> 342930.362 | E75: =SUM(B75+C75) -> 1478461.362
A76: Итого услуга 5 | B76: =SUM(B71:B75) -> 10120970 | C76: =SUM(C71:C75) -> 3056532.94 | D76: =SUM(D71:D74) -> 11297559.46 | E76: =SUM(E71:E75) -> 1879943.478
A77: основ. персонал | B77: =SUM(B71+B74) -> 8677081 | C77: =SUM(C71+C74) -> 2620478.462
A78: вспом.персонал | B78: =SUM(B73+B75) -> 1443889 | C78: =SUM(C73+C75) -> 436054.478
A79: Итого услуга 5 с уменьшением на 5% | B79: =B80+B81 -> 9614921.5 | C79: =C80+C81 -> 2903706.293 | D79: =B80+C80 -> 10732681.49 | E79: =B81+C81 -> 1785946.304
A80: основ. персонал | B80: =B77/100*95 -> 8243226.95 | C80: =C77/100*95 -> 2489454.539
A81: вспом.персонал | B81: =B78/100*95 -> 1371694.55 | C81: =C78/100*95 -> 414251.7541
A82: 6.Социально-правовые услуги
A83: 1. соц.раб, спец.по соц.раб | B83: 1587325 | C83: =SUM(B83*C9) -> 479372.15 | D83: =SUM(B83:C83) -> 2066697.15
A84: 1.делопр., юрист,зам дир | B84: 1120086 | C84: =SUM(B84*C9) -> 338265.972 | E84: =SUM(B84+C84) -> 1458351.972
A85: прочий перс. | B85: 341173 | C85: =SUM(B85*C9) -> 103034.246 | E85: =SUM(B85+C85) -> 444207.246
A86: Итого услуга 6 | B86: =SUM(B83:B85) -> 3048584 | C86: =SUM(C83:C85) -> 920672.368 | D86: =SUM(D83:D84) -> 2066697.15 | E86: =SUM(E83:E85) -> 1902559.218
A87: основ. персонал | B87: =SUM(B83) -> 1587325 | C87: =SUM(C83) -> 479372.15
A88: вспом.персонал | B88: =SUM(B84+B85) -> 1461259 | C88: =SUM(C84+C85) -> 441300.218
A89: Итого услуга 6 с уменьшением на 5% | B89: =B90+B91 -> 2896154.8 | C89: =C90+C91 -> 874638.7496 | D89: =B90+C90 -> 1963362.292 | E89: =B91+C91 -> 1807431.257
A90: основ. персонал | B90: =B87/100*95 -> 1507958.75 | C90: =C87/100*95 -> 455403.5425
A91: вспом.персонал | B91: =B88/100*95 -> 1388196.05 | C91: =C88/100*95 -> 419235.2071
A92: 7. Услуги в целях повышения коммуникативного потенциала получателей социальных услуг, имеющих ограничения жизнидеятельности, в том числе детей инвалидов
A93: 2. восп.1/6,медики1/4 | B93: 4235098 | C93: 1284837 | D93: =SUM(B93:C93) -> 5519935
A94: 3. водители1/3 | B94: 166457 | C94: =SUM(B94*C9) -> 50270.014 | E94: =SUM(B94+C94) -> 216727.014
A95: деж.по режиму | B95: 332914 | C95: =SUM(B95*C9) -> 100540.028 | D95: =SUM(B95:C95) -> 433454.028
A96: 4. рук.круж Пигаева | B96: 154179 | C96: =SUM(B96*C9) -> 46562.058 | D96: =SUM(B96:C96) -> 200741.058
A97: прочий перс. | B97: 618633 | C97: =SUM(B97*C9) -> 186827.166 | E97: =SUM(B97+C97) -> 805460.166
A98: Итого услуга 7 | B98: =SUM(B93:B97) -> 5507281 | C98: =SUM(C93:C97) -> 1669036.266 | D98: =SUM(D93:D96) -> 6154130.086 | E98: =SUM(E93:E97) -> 1022187.18
A99: основ. персонал | B99: =SUM(B93+B95+B96) -> 4722191 | C99: =SUM(C93+C95+C96) -> 1431939.086
A100: вспом.персонал | B100: =SUM(B94+B97) -> 785090 | C100: =SUM(C94+C97) -> 237097.18
A101: Итого услуга 7 с уменьшением на 5% | B101: =B102+B103 -> 5231916.95 | C101: =C102+C103 -> 1585584.453 | D101: =B102+C102 -> 5846423.582 | E101: =B103+C103 -> 971077.821
A102: основ. персонал | B102: =B99/100*95 -> 4486081.45 | C102: =C99/100*95 -> 1360342.132
A103: вспом.персонал | B103: =B100/100*95 -> 745835.5 | C103: =C100/100*95 -> 225242.321
A105: Всего осн. | B105: =SUM(B13+B19+B23+B26+B36+B38+B40+B52+B61+B71+B74+B83+B93+B96+B95) -> 72706334 | C105: =SUM(C13+C19+C23+C26+C36+C38+C40+C52+C61+C71+C74+C83+C93+C96+C95) -> 22127298.76 | D105: =SUM(D29+D45+D52+D64+D76+D86+D98) -> 94833632.76
A106: Всего вспом. | B106: =SUM(B11+B14+B17+B27+B42+B62+B73+B84+B94+B28+B44+B53+B63+B75+B85+B97) -> 18900666 | C106: =SUM(C11+C14+C17+C27+C42+C62+C73+C84+C94+C28+C44+C53+C63+C75+C85+C97) -> 5708001.132 | E106: =SUM(E29+E45+E64+E76+E86+E98+E54) -> 24608667.13
A107: ИТОГО на 2022 | B107: =SUM(B105:B106) -> 91607000 | C107: =SUM(C105:C106) -> 27835299.89
A111: Заместитель главного бухгалтера | D111: Н.В. Пономарева
A114: Исполнители:
A115: Рыбакова О.В.

Sheet 346 бланки
A2: Расчет (обоснование) расходов на приобретение прочих материальных запасов (бланки) на 2022 год
A3: Код видов расходов 244 Источник финансового обеспечения: субсидии из областного бюджета на финансовое обеспечение выполнения Учреждением государственного задания на оказание государственных услуг
B5: Увеличение стоимости прочих материальных запасов (КОСГУ 346)
A6: № п/п | B6: Наименование расходов | C6: Кол-во на год | D6: Средняя стоимость, руб | E6: Сумма, руб
A8: 1 | B8: Карточка складского учета | C8: 1000 | D8: 5.56 | E8: =C8*D8 -> 5560
A9: 2 | B9: Путевой лист грузового автомобиля 4-С | C9: 500 | D9: 0.3 | E9: =C9*D9 -> 150
A10: 3 | B10: Путевой лист легкового автомобиля ф.3 | C10: 500 | D10: 1.14 | E10: 570
A11: 4 | B11: Книга "Журнал предрейсового медосмотра" | C11: 3 | D11: 123.84 | E11: 371.52
A12: 5 | B12: Книга "Журнал регистрации вводного инструктажа" | C12: 3 | D12: 44.68 | E12: 134.04
A13: 6 | B13: Книга "Журнал учета путевых листов" | C13: 10 | D13: 44.6 | E13: 446
A14: 7 | B14: Табель рабочего времени | C14: 2000 | D14: 1.27 | E14: 2540
A15: 8 | B15: График рабочего времени | C15: 2000 | D15: 0.85 | E15: 1700
A16: 9 | B16: Журнал бракеража пищевых продуктов и продовольственного сырья | C16: 6 | D16: 181.5 | E16: 1089
A17: 10 | B17: Бланк "Лист диспансерного осмотра" | C17: 200 | D17: 1.52 | E17: 304
A18: 11 | B18: Бланк "Процедурная карта" | C18: 100 | D18: 0.97 | E18: 97
A19: 12 | B19: Бланк "В рентгеновский кабинет" | C19: 400 | D19: 0.67 | E19: 268
A20: 13 | B20: Бланк "Листок статистического учета прибытия" | C20: 51 | D20: 3.3 | E20: 168.3
A21: 14 | B21: Бланк ""Карта больного, лечащегося в физиотерапевтическом отделении" | C21: 200 | D21: 1.1482 | E21: 229.64
A22: 15 | B22: Бланк "Карта регистрации" | C22: 50 | D22: 10.45 | E22: 522.5
A23: 16 | B23: Бланк "Направление на медико-социальную экспертизу+вкладыш" | C23: 100 | D23: 11 | E23: 1100
B24: Итого: | C24: Х | D24: Х | E24: =SUM(E8:E23) -> 15250
A26: Директор | E26: М.И. Жинько
A28: Главный бухгалтер | E28: А.А. Кирик
A30: Исполнители:
A31: Рыбакова О.В.

Sheet 346 дезсредства
A2: Расчет (обоснование) расходов на приобретение прочих материальных запасов (дезсредства) на 2022 год
A4: Код видов расходов 244 Источник финансового обеспечения: субсидии из областного бюджета на финансовое обеспечение выполнения Учреждением государственного задания на оказание государственных услуг
A6: Увеличение стоимости прочих материальных запасов (КОСГУ 346)
A8: № п/п | B8: Наименование расходов | C8: Кол-во на год | D8: Средняя стоимость, руб | E8: Сумма, руб
A10: 1 | B10: Дезинфицирующее средство 3Д-Септ, объем 1 л | C10: 330 | D10: 584.4 | E10: =C10*D10 -> 192852
A11: 2 | B11: Антисептик, 1л | C11: 260 | D11: 267.5 | E11: =C11*D11 -> 69550
A12: 3 | B12: Мыло антисептическое | C12: 20 | D12: 129.9 | E12: =C12*D12 -> 2598
B13: Итого | C13: Х | D13: Х | E13: =SUM(E9:E12) -> 265000
B15: Предоставление всех видов услуг | C15: Разделение на услуги пропорционально, согласно занимаемым площадям | D15: 0
B16: Предоставление социально-бытовых услуг | C16: 32.4 | D16: =C16*D15/100 -> 0
B17: Предоставление социально-медицинских услуг | C17: 7.58 | D17: =C17*D15/100 -> 0
B18: Предоставление социально-психологических услуг | C18: 4.21 | D18: =C18*D15/100 -> 0
B19: Предоставление социально-педагогических услуг | C19: 24.86 | D19: =C19*D15/100 -> 0
B20: Предоставление-социально трудовых услуг | C20: 4.11 | D20: =C20*D15/100 -> 0
B21: Предоставление социально-правовых услуг | C21: 5.27 | D21: =C21*D15/100 -> 0
B22: Предоставление услуг в целяхповшения коммуникативного потенциала получателей социальных услуг, имеющих ограничения жизнидеятельности, в том числе детей инвалидов | C22: 21.57 | D22: =C22*D15/100 -> 0
C23: =SUM(C16:C22) -> 100 | D23: =SUM(D16:D22) -> 0
A28: Директор | E28: М.И. Жинько
A30: Главный бухгалтер | E30: А.А. Кирик
A32: Исполнители:
A34: Рыбакова О.В.

Sheet 346 канцтовары воспитан
A2: Расчет (обоснование) расходов на приобретение прочих материальных запасов (канцелярские товары для образовательного процесса) на 2022 год
A4: Код видов расходов 244 Источник финансового обеспечения: субсидии из областного бюджета на финансовое обеспечение выполнения Учреждением государственного задания на оказание государственных услуг
A6: Увеличение стоимости прочих материальных запасов (КОСГУ 346)
A8: № п/п | B8: Наименование расходов | C8: Кол-во на год | D8: Средняя стоимость, руб | E8: Сумма, руб
A10: 1 | B10: Бумага формата А3 | C10: 10 | D10: 600 | E10: =C10*D10 -> 6000
A11: 2 | B11: Бумага формата А4 | C11: 40 | D11: 300 | E11: =C11*D11 -> 12000
A12: 3 | B12: Фотобумага | C12: 2 | D12: 750 | E12: 1500
A13: 4 | B13: Бумага цветная для печати | C13: 4 | D13: 670 | E13: 2680
A14: 5 | B14: Пленка для ламинирования | C14: 2 | D14: 720 | E14: 1440
A15: 6 | B15: Тетрадь клетка | C15: 110 | D15: 14 | E15: 1540
A16: 7 | B16: Тетрадь линейка | C16: 110 | D16: 14 | E16: 1540
A17: 8 | B17: Ручка шариковая | C17: 100 | D17: 44 | E17: 4400
A18: 9 | B18: Прописи разные | C18: 50 | D18: 150 | E18: =C18*D18 -> 7500
A19: 10 | B19: Карандаши цветные 18 цветов | C19: 70 | D19: 320 | E19: 22400
A20: 11 | B20: Карандаши цветные 12 цветов | C20: 65 | D20: 155 | E20: 10075
A21: 12 | B21: Карандаш чернографический | C21: 50 | D21: 24 | E21: 1200
A22: 13 | B22: Ручка гелевая | C22: 50 | D22: 28 | E22: 1400
A23: 14 | B23: Классный журнал | C23: 12 | D23: 267.08333 | E23: 3204.99996
A24: 15 | B24: Файлы 100 шт. | C24: 6 | D24: 320 | E24: 1920
A25: 16 | B25: Бумага цветная | C25: 90 | D25: 30 | E25: =C25*D25 -> 2700
A26: 17 | B26: Картон цветной | C26: 90 | D26: 100 | E26: 9000
A27: 18 | B27: Картон белый | C27: 85 | D27: 80 | E27: 6800
A28: 19 | B28: Клей карандаш | C28: 70 | D28: 50 | E28: 3500
A29: 20 | B29: Клей пва 500гр. | C29: 16 | D29: 160 | E29: 2560
A30: 21 | B30: Альбом для рисования 40л. | C30: 85 | D30: 88 | E30: 7480
A31: 22 | B31: Краски акварельные | C31: 40 | D31: 120 | E31: 4800
A32: 23 | B32: Гуашь | C32: 50 | D32: 292 | E32: 14600
A33: 24 | B33: Кисти для рисования | C33: 50 | D33: 45 | E33: 2250
A34: 25 | B34: Ватман А1 100 листов | C34: 1 | D34: 3500 | E34: 3500
A35: 26 | B35: Пластилин | C35: 70 | D35: 128 | E35: 8960
A36: 27 | B36: Скотч | C36: 20 | D36: 105 | E36: 2100
A37: 28 | B37: Скобы для степлера | C37: 10 | D37: 35 | E37: 350
A38: 28 | B38: Папка скоросшиватель | C38: 10 | D38: 40 | E38: 400
A39: 29 | B39: Папка скоросшиватель архивная | C39: 10 | D39: 220 | E39: =C39*D39 -> 2200
B40: Итого | C40: Х | D40: Х | E40: =SUM(E9:E39) -> 150000
A45: Директор | E45: М.И. Жинько
A47: Главный бухгалтер | E47: А.А. Кирик
A49: Исполнители:
A50: Рыбакова О.В.

Sheet 346 канцтовары администр
A1: Расчет (обоснование) расходов на приобретение прочих материальных запасов (канцелярские товары для общехозяйственных нужд) на 2022 год
A3: Код видов расходов 244 Источник финансового обеспечения: субсидии из областного бюджета на финансовое обеспечение выполнения Учреждением государственного задания на оказание государственных услуг
A5: Увеличение стоимости прочих материальных запасов (КОСГУ 346)
A7: № п/п | B7: Наименование расходов | C7: Кол-во на год | D7: Средняя стоимость, руб | E7: Сумма, руб
A9: 1 | B9: Бумага офисная А4, | C9: 230 | D9: 239.61 | E9: =D9*C9 -> 55110.3
A10: 2 | B10: Блок для записей STAFF непроклеенный, | C10: 5 | D10: 120.57 | E10: 602.85
A11: 3 | B11: Дырокол | C11: 3 | D11: 342.91 | E11: 1028.73
A12: 4 | B12: Закладки клейкие (пластиковые) | C12: 50 | D12: 28.1532 | E12: 1407.66
A13: 5 | B13: Калькулятор | C13: 3 | D13: 819.5 | E13: 2458.5
A14: 6 | B14: Карандаши ч/г | C14: 20 | D14: 12.78 | E14: 255.6
A15: 7 | B15: Клей-карандаш | C15: 5 | D15: 63.8 | E15: 319
A16: 8 | B16: Клейкая лента 48мм х 66м | C16: 8 | D16: 138.42 | E16: 1107.36
A17: 9 | B17: Клейкая лента 12мм х 33м прозрачн | C17: 5 | D17: 17.88 | E17: 89.4
A18: 10 | B18: Книга учета 96л, А4 | C18: 50 | D18: 95.77 | E18: 4788.5
A19: 11 | B19: Корректирующая лента | C19: 10 | D19: 85.09 | E19: 850.9
A20: 12 | B20: Линейка пластик 30 см | C20: 2 | D20: 71.5 | E20: 143
A21: 13 | B21: Ластик | C21: 5 | D21: 24.2 | E21: 121
A22: 14 | B22: Папки-файлы перфорированные А4 | C22: 5 | D22: 239.98 | E22: 1199.9
A23: 15 | B23: Ручка шариковая синяя | C23: 50 | D23: 23.61 | E23: 1180.5
A24: 16 | B24: Скоросшиватель картонный STAFF, 200л. | C24: 50 | D24: 9.08 | E24: 454
A25: 17 | B25: Скобы для степлера № 24/6 | C25: 10 | D25: 50.6 | E25: 506
A26: 18 | B26: Скобы для степлера № 10 | C26: 15 | D26: 39.82 | E26: 597.3
A27: 19 | B27: Скрепки 28 мм, металлические, 100 шт., | C27: 20 | D27: 33 | E27: 660
A28: 20 | B28: Степлер №24 | C28: 5 | D28: 244.9 | E28: 1224.5
A29: 21 | B29: Степлер №10 | C29: 5 | D29: 175.21 | E29: 876.05
A30: 22 | B30: Стержень шариковый синий | C30: 30 | D30: 9.9 | E30: 297
A31: 23 | B31: Текстмарке, лимонный | C31: 5 | D31: 27.27 | E31: 136.35
A32: 24 | B32: Текстмаркер зеленый | C32: 3 | D32: 46.2 | E32: 138.6
A33: 25 | B33: Папка-регистратор | C33: 100 | D33: 101.17 | E33: 10117
A34: 26 | B34: Тетрадь 48л. | C34: 10 | D34: 33 | E34: 330
B35: Итого: | C35: Х | D35: Х | E35: =SUM(E9:E34) -> 86000
A37: Директор | E37: М.И. Жинько
A39: Главный бухгалтер | E39: А.А. Кирик
A41: Исполнители:
A42: Рыбакова О.В.

Sheet 346 моющие
A2: Расчет (обоснование) расходов на приобретение прочих материальных запасов (моющие средства) на 2022 год
A4: Код видов расходов 244 Источник финансового обеспечения: субсидии из областного бюджета на финансовое обеспечение выполнения Учреждением государственного задания на оказание государственных услуг
A6: Увеличение стоимости прочих материальных запасов (КОСГУ 346)
A7: № п/п | B7: Наименование расходов | C7: Кол-во на год | D7: Средняя стоимость, руб | E7: Сумма, руб
A9: 1 | B9: Средство для мытья посуды 500мл, л | C9: 120 | D9: 52.51 | E9: =C9*D9 -> 6301.2
A10: 2 | B10: Стиральный порошок автомат 20 кг, кг | C10: 480 | D10: 29.41 | E10: 14116.8
A11: 3 | B11: Стиральный порошок автомат 3кг. Тайд, кг | C11: 36 | D11: 165 | E11: 5940
A12: 4 | B12: Мыло хозяйственное 72%, 200г, кг | C12: 98.4 | D12: 90.07 | E12: 8862.888
A13: 5 | B13: Средство для отбеливания и чистки тканей 600 г БОС плюс Maximum порошок, кг | C13: 74.4 | D13: 149.51 | E13: 11123.544
A14: 6 | B14: Средство для отбеливания и чистки тканей 250г Белизна порошок, кг | C14: 36 | D14: 94.99 | E14: 3419.64
A15: 7 | B15: Сода кальценировання 600гр., кг | C15: 43.2 | D15: 40.34 | E15: 1742.688
A16: 8 | B16: Средство для мытья окон 500мл., л | C16: 24 | D16: 75.56 | E16: 1813.44
A17: 9 | B17: Освежитель воздуха аэрозольный 300мл, л | C17: 79.2 | D17: 166.1 | E17: 13155.12
A18: 10 | B18: Средство д/сантех.Санокс гель 750мл., л | C18: 324 | D18: 84.85 | E18: 27491.4
A19: 11 | B19: Средство д/сантех.Санфор гель 750мл., л | C19: 135 | D19: 84.85 | E19: 11454.75
A20: 12 | B20: Чистящее средство 400г порошок, кг | C20: 206.4 | D20: 64.58 | E20: 13329.312
A21: 13 | B21: Средство для мытья пола 1л, л | C21: 432 | D21: 41.26 | E21: 17824.32
A22: 14 | B22: Тринатрий фосфат 1кг, кг | C22: 84 | D22: 63.98 | E22: 5374.32
A23: 15 | B23: Белизна 1л, л | C23: 132 | D23: 28.29 | E23: 3734.28
A24: 16 | B24: Зубная паста 100мл, кг | C24: 165.6 | D24: 386.96 | E24: 64080.576
A25: 17 | B25: Мыло туалетное 100г., кг | C25: 270 | D25: 122.17 | E25: 32985.9
A26: 18 | B26: Мыло жидкое 5л, л | C26: 60 | D26: 312.755666 | E26: 18765.33996
A27: 19 | B27: Шампунь 1л., л | C27: 192 | D27: 44.19 | E27: 8484.48
B28: Итого: | C28: Х | D28: Х | E28: =SUM(E9:E27) -> 269999.998
A30: Директор | E30: М.И. Жинько
A32: Главный бухгалтер | E32: А.А. Кирик
A34: Исполнители:
A35: Рыбакова О.В.

Sheet 346 запчасти
A2: Расчет (обоснование) расходов на приобретение прочих материальных запасов (запасные части) на 2022 год
A4: Код видов расходов 244 Источник финансового обеспечения: субсидии из областного бюджета на финансовое обеспечение выполнения Учреждением государственного задания на оказание государственных услуг
A6: Увеличение стоимости прочих материальных запасов (КОСГУ 346)
A8: № п/п | B8: Наименование расходов | C8: Кол-во на год | D8: Средняя стоимость, руб | E8: Сумма, руб
A10: 1 | B10: Аккумулятор | C10: 2 | D10: 7500 | E10: =C10*D10 -> 15000
A11: 2 | B11: Фильтр воздушный | C11: 2 | D11: 1200 | E11: 2400
A12: 3 | B12: Фильтр масляный | C12: 4 | D12: 1000 | E12: 4000
A13: 4 | B13: Колодки тормозные передние | C13: 2 | D13: 2500 | E13: 5000
A14: 5 | B14: Колодки тормозные задние | C14: 2 | D14: 2500 | E14: 5000
A15: 6 | B15: Шины | C15: 4 | D15: 4650 | E15: 18600
B16: Итого | C16: Х | D16: Х | E16: =SUM(E10:E15) -> 50000
A20: Директор | E20: М.И. Жинько
A22: Главный бухгалтер | E22: А.А. Кирик
A24: Исполнитель:
A25: Рыбакова О.В.

Sheet 346 хозинвентарь
A1: Расчет (обоснование) расходов на приобретение прочих материальных запасов (хозяйственный инвентарь) на 2022 год
A3: Код видов расходов 244 Источник финансового обеспечения: субсидии из областного бюджета на финансовое обеспечение выполнения Учреждением государственного задания на оказание государственных услуг
A5: Увеличение стоимости прочих материальных запасов (КОСГУ 346)
A7: № п/п | B7: Наименование расходов | C7: Кол-во на год | D7: Средняя стоимость, руб | E7: Сумма, руб
A8: 1 | B8: Мочалка банная с 2 ручками | C8: 684 | D8: 62.47 | E8: =C8*D8 -> 42729.48
A9: =A8+1 -> 2 | B9: Корзина для белья объем - 50 л, с крышкой | C9: 20 | D9: 574.67 | E9: 11493.4
A10: =A9+1 -> 3 | B10: Зубная щетка | C10: 2052 | D10: 28.9 | E10: 59302.8
A11: 4 | B11: Клей момент универсальный | C11: 30 | D11: 150 | E11: 4500
A12: 5 | B12: Секатор ручной диаметр резки, до 24 мм | C12: 1 | D12: 400 | E12: 400
A13: 6 | B13: Бочка пластиковая 60 л, с крышкой | C13: 3 | D13: 935.33 | E13: 2805.99
A14: 7 | B14: Черенок деревянный, универсальный | C14: 50 | D14: 81.38 | E14: 4069
A15: 8 | B15: Тряпкодержатель металлический (швабра) с деревянным черенком | C15: 30 | D15: 51.12 | E15: 1533.6
A16: 9 | B16: Щетка - сметка с деревянной ручкой | C16: 40 | D16: 124.16 | E16: 4966.4
A17: 10 | B17: Ткань для мытья полов хлопчатобумажная (в рулонах) | C17: 5 | D17: 2115.42 | E17: 10577.1
A18: 11 | B18: Ведро Пластмассовое, 10 л | C18: 50 | D18: 88.21 | E18: 4410.5
A19: 12 | B19: Черенок для лопаты совковой, деревянный | C19: 40 | D19: 73.56 | E19: 2942.4
A20: 13 | B20: Насадка для швабры, МОП, х/б | C20: 10 | D20: 185.31 | E20: 1853.1
A21: 14 | B21: Таз пластиковый, 10 л., круглый | C21: 40 | D21: 96.33 | E21: 3853.2
A22: 15 | B22: Ерш для туалета | C22: 30 | D22: 79 | E22: 2370
A23: 16 | B23: Техническая соль вес - 20 кг | C23: 50 | D23: 390 | E23: 19500
A24: 17 | B24: Лопата совковая | C24: 30 | D24: 220.67 | E24: 6620.1
A25: 18 | B25: Лопата снеговая Материал-пластик, черенок-деревянный, с оцинкованным наконечником | C25: 30 | D25: 245.18 | E25: 7355.4
A26: 19 | B26: Колесо для садовой тачки бескамерное | C26: 6 | D26: 806.745 | E26: 4840.47
A27: 20 | B27: Ледоруб | C27: 10 | D27: 400 | E27: 4000
A28: 21 | B28: Метла березовая | C28: 600 | D28: 50 | E28: 30000
A29: 22 | B29: Фумигатор | C29: 41 | D29: 100 | E29: 4100
A30: 23 | B30: Пластины от комаров | C30: 450 | D30: 20 | E30: 9000
A31: 24 | B31: Лопата штыковая | C31: 15 | D31: 250 | E31: 3750
A32: 25 | B32: Метла синтетическая | C32: 50 | D32: 250 | E32: 12500
A33: 26 | B33: Грабли | C33: 50 | D33: 155 | E33: 7750
A34: 27 | B34: Поролон | C34: 10 | D34: 435.67 | E34: 4356.7
A35: 28 | B35: Клейкая лента | C35: 100 | D35: 123.33 | E35: 12333
A36: 29 | B36: Ведро пластмассовое, 7л. | C36: 17 | D36: 76.33 | E36: 1297.61
A37: 30 | B37: Цилиндрический механизм | C37: 15 | D37: 404.5 | E37: 6067.5
A38: 31 | B38: Семена | C38: 500 | D38: 30 | E38: 15000
A39: 32 | B39: Грунт универсальный 50л | C39: 12 | D39: 438.9 | E39: 5266.8
A40: 33 | B40: Средство для защиты растений | C40: 100 | D40: 50 | E40: 5000
A41: 34 | B41: Губка (мочалка) для посуды металлическая | C41: 130 | D41: 19.2 | E41: 2496
A42: 35 | B42: Бумага туалетная | C42: 3079 | D42: 11.2 | E42: =C42*D42 -> 34484.8
A43: 36 | B43: Прокладки Bella женские, гигиенические | C43: 420 | D43: 40.65 | E43: 17073
A44: 37 | B44: Мешки для мусора (30 л - 30 шт) | C44: 624 | D44: 29.96 | E44: 18695.04
A45: 38 | B45: Перчатки хоз.латексные ОФИСМАГ, с х/б напылением | C45: 553 | D45: 42.82 | E45: 23679.46
A46: 39 | B46: Мешки д/мусора 120л (10шт.) | C46: 300 | D46: 140.75 | E46: 42225
A47: 40 | B47: Бюретка без крана объемом 100 мл. | C47: 5 | D47: 350 | E47: 1750
A48: 41 | B48: Рамки для благодарственных писем | C48: 50 | D48: 500 | E48: 25 000,00
A49: 42 | B49: Бланки благодарственных писем | C49: 50 | D49: 15 | E49: 750
A50: 43 | B50: Демонстрационная система (Офисная папка) | C50: 2 | D50: 3600 | E50: 7200
A51: 44 | B51: Зажимы для волос по 12 шт | C51: 4 | D51: 230 | E51: 920
A52: 45 | B52: Рамки для фотографий | C52: 20 | D52: 500 | E52: 10000
A53: 46 | B53: Кашпо уличное | C53: 8 | D53: 900 | E53: =D53*C53 -> 7200
A54: 47 | B54: Воротничок парикмахерский в рулоне 100 штук | C54: 18 | D54: 299 | E54: 5382
A55: 48 | B55: Кисточка кондитерская | C55: 1 | D55: 150 | E55: 150
A56: 49 | B56: Клеенка на столы, рулон | C56: 1 | D56: 250 | E56: 250
A57: 50 | B57: Валик под руку | C57: 1 | D57: 1840 | E57: 1840
A58: 51 | B58: Щетка с совком | C58: 1 | D58: 1100 | E58: 1100
A59: 52 | B59: Ведро | C59: 3 | D59: 500 | E59: 1500
A60: 53 | B60: Урна для мусора с крышкой | C60: 2 | D60: 900 | E60: 1800
A61: 54 | B61: Полотеничница в душ | C61: 2 | D61: 1800 | E61: 3600
A62: 55 | B62: Полки для мочалок в душ | C62: 2 | D62: 1280 | E62: 2560
A63: 56 | B63: Штора в душ | C63: 2 | D63: 1487 | E63: 2974
A64: 57 | B64: Держатель для шторы | C64: 2 | D64: 1202 | E64: 2404
A65: 58 | B65: Бумагодержатель | C65: 2 | D65: 250 | E65: 500
A66: 59 | B66: Ерш | C66: 2 | D66: 300 | E66: 600
A67: 60 | B67: Ведро для пола, 10 л | C67: 15 | D67: 573.47666 | E67: 8602.15
A68: 61 | B68: Ведра для пыли, 5 л | C68: 12 | D68: 350 | E68: 4200
A69: 62 | B69: Таблички- названия | C69: 22 | D69: 400 | E69: 8800
A70: 63 | B70: Таблички шрифтом Брайля | C70: 22 | D70: 400 | E70: 8800
A71: 64 | B71: Бегущая строка | C71: 1 | D71: 20000 | E71: 20000
A72: 65 | B72: Урна для мусора | C72: 13 | D72: 540 | E72: 7020
A73: 66 | B73: Фильтры для рециркуляторов | C73: 3 упак. | D73: 2300 | E73: 6900
B74: Итого | C74: Х | D74: Х | E74: =SUM(E8:E73) -> 572000
A79: Директор | E79: М.И. Жинько
A81: Главный бухгалтер | E81: А.А. Кирик
A83: Исполнители:
A84: Рыбакова О.В..

Sheet 346 хоз. посуда
A1: Расчет (обоснование) расходов на приобретение прочих материальных запасов (хозяйственный инвентарь) на 2022 год
A3: Код видов расходов 244 Источник финансового обеспечения: субсидии из областного бюджета на финансовое обеспечение выполнения Учреждением государственного задания на оказание государственных услуг
A5: Увеличение стоимости прочих материальных запасов (КОСГУ 346)
A7: № п/п | B7: Наименование расходов | C7: Кол-во на год | D7: Средняя стоимость, руб | E7: Сумма, руб
A8: 1 | B8: Кастрюля 15 л | C8: 2 | D8: 3500 | E8: 7000
A9: 2 | B9: Кастрюля 10 л | C9: 2 | D9: 3000 | E9: 6000
A10: 3 | B10: Кастрюля 5 л | C10: 2 | D10: 2500 | E10: 5000
B11: Итого | C11: Х | D11: Х | E11: =SUM(E8:E10) -> 18000
A15: Директор | E15: М.И. Жинько
A17: Главный бухгалтер | E17: А.А. Кирик
A19: Исполнители:
A20: Рыбакова О.В

Sheet 346 споринв.
A1: Расчет (обоснование) расходов на приобретение прочих материальных запасов (хозяйственный инвентарь) на 2022 год
A3: Код видов расходов 244 Источник финансового обеспечения: субсидии из областного бюджета на финансовое обеспечение выполнения Учреждением государственного задания на оказание государственных услуг
A5: Увеличение стоимости прочих материальных запасов (КОСГУ 346)
A7: № п/п | B7: Наименование расходов | C7: Кол-во на год | D7: Средняя стоимость, руб | E7: Сумма, руб
A9: 1 | B9: Мяч (волейб., футб.) | C9: 2 | D9: 900 | E9: 1800
A10: 2 | B10: Мячи резиновые 125-200 | C10: 6 | D10: 600 | E10: =C10*D10 -> 3600
A11: 3 | B11: Тюбинг | C11: 4 | D11: 2300 | E11: 9200
A12: 4 | B12: Фишки для футбола | C12: 2 | D12: 700 | E12: 1400
A13: 5 | B13: Гантеля 1000гр. | C13: 2 | D13: 790 | E13: 1580
A14: 6 | B14: Гантеля 500гр. | C14: 2 | D14: 350 | E14: 700
A15: 7 | B15: Гантеля 3000гр. | C15: 2 | D15: 1200 | E15: 2400
A16: 8 | B16: Гантеля 4000гр. | C16: 2 | D16: 1500 | E16: 3000
A17: 9 | B17: Палатка туристическая 3-х местная | C17: 2 | D17: 6300 | E17: 12600
A18: 10 | B18: Блин 2500 гр. | C18: 2 | D18: 400 | E18: 800
A19: 11 | B19: Блин 5000гр. | C19: 2 | D19: 700 | E19: 1400
A20: 12 | B20: Блин 10000гр. | C20: 2 | D20: 1200 | E20: 2400
A21: 13 | B21: Сетка для бадминтона | C21: 1 | D21: 500 | E21: 500
A22: 14 | B22: Массажные мячи Суд-Джок | C22: 10 | D22: 250 | E22: 2500
A23: 15 | B23: Мячи массажные (для кабинета ЛФК) | C23: 10 | D23: 250 | E23: 2500
B24: Итого | C24: Х | D24: Х | E24: =SUM(E9:E23) -> 46380
A25: Уменьшение лимитов - 5%
A27: Директор | E27: М.И. Жинько
A29: Главный бухгалтер | E29: А.А. Кирик
A31: Исполнители:
A32: Рыбакова О.В.

Sheet 346 игрушки
A1: Расчет (обоснование) расходов на приобретение прочих материальных запасов (игрушки) на 2022 год
A3: Код видов расходов 244 Источник финансового обеспечения: субсидии из областного бюджета на финансовое обеспечение выполнения Учреждением государственного задания на оказание государственных услуг
A4: Увеличение стоимости прочих материальных запасов (КОСГУ 346)
A6: № п/п | B6: Наименование расходов | C6: Кол-во на год | D6: Средняя стоимость, руб | E6: Сумма, руб
A7: 1 | B7: Бизиборд (доска развивайка) | C7: 4 | D7: 2500 | E7: =C7*D7 -> 10000
A8: 2 | B8: Разв. игра нумикон | C8: 5 | D8: 6000 | E8: =C8*D8 -> 30000
A9: 3 | B9: Равз. игра палочки Кюизинера | C9: 5 | D9: 900 | E9: 4500
A10: 4 | B10: Разв. игра блоки Дьеныша | C10: 3 | D10: 420 | E10: 1260
A11: 5 | B11: Рамки вкладыши | C11: 3 | D11: 700 | E11: 2100
A12: 6 | B12: Раз. игра геометрические фигуры на магнитах | C12: 5 | D12: 500 | E12: 2500
A13: 7 | B13: Танграмм магнитный | C13: 3 | D13: 790 | E13: 2370
A14: 8 | B14: Магнитный планшет | C14: 3 | D14: 900 | E14: 2700
A15: 9 | B15: Тактильные доски | C15: 5 | D15: 1150 | E15: 5750
A16: 10 | B16: Набор матрешек раздаточный материал | C16: 2 | D16: 1050 | E16: 2100
A17: 11 | B17: Игровые наборы( грибочки, уточки, елочки) | C17: 3 | D17: 820 | E17: 2460
A18: 12 | B18: Набор резиновый ( дикие животные, домашние животные) | C18: 4 | D18: 500 | E18: 2000
A19: 13 | B19: Бизиборд настольный для развития графо-моторных навыков | C19: 3 | D19: 4000 | E19: 12000
A20: 14 | B20: Балансир с вкладышами | C20: 2 | D20: 4955 | E20: 9910
A21: 15 | B21: Мультиформы для нанизывания | C21: 3 | D21: 1200 | E21: 3600
A22: 16 | B22: Фланелеграф, развивающие игры из фетра | C22: 3 | D22: 990 | E22: 2970
A23: 17 | B23: Мемо игры разные | C23: 3 | D23: 590 | E23: 1770
A24: 18 | B24: Логические цепочки разные | C24: 3 | D24: 650 | E24: 1950
A25: 19 | B25: Геометрическое лото | C25: 3 | D25: 730 | E25: 2190
A26: 20 | B26: Тактильное лото | C26: 3 | D26: 350 | E26: 1050
A27: 21 | B27: тактильное домино | C27: 3 | D27: 940 | E27: 2820
A28: 22 | B28: Пазлы деревянные | C28: 3 | D28: 800 | E28: 2400
A29: 23 | B29: Игрушки дергунчики | C29: 6 | D29: 600 | E29: 3600
B30: Итого | C30: Х | D30: Х | E30: =SUM(E7:E29) -> 112000
A33: Директор | E33: М.И. Жинько
A35: Главный бухгалтер | E35: А.А. Кирик
A36: Исполнители:
A37: Рыбакова О.В.

Sheet 291
A1: Расчет (обоснование) расходов на оплату налогов, пошлин и сборов на 2022 год
A2: Код видов расходов 851 Источник финансового обеспечения: субсидии из областного бюджета на финансовое обеспечение выполнения Учреждением государственного задания на оказание государственных услуг
A4: Налоги, пошлины и сборы (КОСГУ 291)
A5: N п/п | B5: Наименование расходов | C5: Налоговая база, руб. | D5: Ставка налога, % | E5: Сумма исчисленного налога, подлежащего уплате, руб. (гр. 3 x гр. 4 / 100)
A6: 1 | B6: 2 | C6: 3 | D6: 4 | E6: 5
A7: 1 | B7: Налог на землю 52:18:40171:346 Жил.фонд и коммуникации с благоустройством | C7: 89017432.68 | D7: 0.015 | E7: 1335261.49
A8: 2 | B8: Налог на землю 52:18:40171:346 | C8: 6453088.22 | D8: 0.015 | E8: 96796.32
A9: 3 | B9: Налог на землю 52:18:40171:347 | C9: 38970941.7 | D9: 0.015 | E9: 584564.13
A10: 4 | B10: Налог на землю 52:18:40171:2 | C10: 29932560 | D10: 0.015 | E10: 448988.4
A11: 5 | B11: Налог на землю 52:18:40171:5 | C11: 7664334.72 | D11: 0.015 | E11: 114965.02
A12: 6 | B12: Налог на землю 52:18:40171:345 | C12: 34419701.75 | D12: 0.015 | E12: 516295.53
A13: 7 | B13: Налог на землю 52:18:40171:344 (автостоянка) | C13: 204851572.3 | D13: 0.015 | E13: 2100284.77
A14: 8 | B14: Налог на имущество | C14: 105457091 | D14: 0.022 | E14: 2320000
B15: Итого: | C15: x | D15: x | E15: 7517155.77
A18: Диектор | E18: М.И.Жинько
A20: Главный бухгалтер | E20: А.А. Кирик
A22: Исполнитель:
A23: Рыбакова О.В.

Sheet 291 остат.
A1: Расчет (обоснование) расходов на оплату налогов, пошлин и сборов на 2022 год
A2: Код видов расходов 851 Источник финансового обеспечения: субсидии из областного бюджета на финансовое обеспечение выполнения Учреждением государственного задания на оказание государственных услуг
A4: Налоги, пошлины и сборы (КОСГУ 291)
A5: N п/п | B5: Наименование расходов | C5: Налоговая база, руб. | D5: Ставка налога, % | E5: Сумма исчисленного налога, подлежащего уплате, руб. (гр. 3 x гр. 4 / 100)
A6: 1 | B6: 2 | C6: 3 | D6: 4 | E6: 5
A7: 1 | B7: Остаток с 2021 года | C7: Х | D7: Х | E7: 0
B8: Итого: | C8: x | D8: x | E8: 0
A12: Директор | E12: М.И. Жинько
A14: Главный бухгалтер | E14: А.А. Кирик
A17: Исполнитель:
A18: Рыбакова О.В.

Sheet 342 продукты питания
A1: Расчет (обоснование) расходов на приобретение продуктов питания на 2022 год
A3: Код видов расходов 244 Источник финансового обеспечения: субсидии из областного бюджета на финансовое обеспечение выполнения Учреждением государственного задания на оказание государственных услуг
A4: Увеличение стоимости продуктов питания (КОСГУ 342)
A6: № п/п | B6: Наименование расходов | C6: Кол-во на год | D6: Средняя стоимость, руб | E6: Сумма, руб
A7: 1 | B7: Морковь столовая | C7: 4000 | D7: 48.8 | E7: =C7*D7 -> 195200
A8: 2 | B8: Картофель | C8: 12496.225 | D8: 41 | E8: =C8*D8 -> 512345.225
A9: 3 | B9: Свекла столовая | C9: 4000.002 | D9: 41.5 | E9: 166000.083
A10: 4 | B10: Лук | C10: 4000 | D10: 41.9 | E10: 167600
A11: 5 | B11: Капуста свежая | C11: 4000 | D11: 69.3 | E11: 277200
A12: 6 | B12: Томатное пюре и паста | C12: 100 | D12: 143.2 | E12: 14320
A13: 7 | B13: Горошек зеленый консервированный | C13: 900.15 | D13: 131.2 | E13: 118099.68
A14: 8 | B14: Кукуруза консервированная | C14: 400 | D14: 151.1 | E14: 60440
A15: 9 | B15: Бананы | C15: 5000 | D15: 115 | E15: 575000
A16: 10 | B16: Яблоки | C16: 5000.001 | D16: 89.8 | E16: 449000.0898
A17: 11 | B17: Яйцо диетическое (шт.) | C17: 47025 | D17: 7.2 | E17: 338580
A18: 12 | B18: Мясо 1 категории | C18: 3830 | D18: 430.4 | E18: 1648432
A19: 13 | B19: Куры 1 кат. (полупотрошен) | C19: 2110 | D19: 168 | E19: 354480
A20: 14 | B20: Вареные колбасные изделия | C20: 600 | D20: 401.3 | E20: 240780
A21: 15 | B21: Сосиски | C21: 800 | D21: 413 | E21: 330400
A22: 16 | B22: Пикша | C22: 2200 | D22: 292.5 | E22: 643500
A23: 17 | B23: Сельдь соленая | C23: 1300 | D23: 175 | E23: 227500
A24: 18 | B24: Сок | C24: 14107.4 | D24: 101.8 | E24: 1436133.32
A25: 19 | B25: Смесь из сухофруктов | C25: 300 | D25: 132.4 | E25: 39720
A26: 20 | B26: Изюм | C26: 300 | D26: 185.3 | E26: 55590
A27: 21 | B27: Курага | C27: 300 | D27: 344.5 | E27: 103350
A28: 22 | B28: Масло растительное | C28: 600 | D28: 133.7 | E28: 80220
A29: 23 | B29: Молоко свежее | C29: 14122.277 | D29: 64.1 | E29: 905237.9557
A30: 24 | B30: Кефир | C30: 3199.95 | D30: 67.7 | E30: 216636.615
A31: 25 | B31: Ряженка | C31: 3199.95 | D31: 85.1 | E31: 272315.745
A32: 26 | B32: Масло сливочное | C32: 1600 | D32: 665.6 | E32: 1064960
A33: 27 | B33: Творог жирный | C33: 2499.84 | D33: 285.6 | E33: 713954.304
A34: 28 | B34: Сметана | C34: 400 | D34: 225.2 | E34: 90080
A35: 29 | B35: Сыры твердые | C35: 400 | D35: 539.3 | E35: 215720
A36: 30 | B36: Хлеб ржаной | C36: 4493.5 | D36: 49.1 | E36: 220630.85
A37: 31 | B37: Батон пшеничный | C37: 7615.96 | D37: 76.7 | E37: 584144.132
A38: 32 | B38: Мука пшеничная | C38: 1400 | D38: 31.8 | E38: 44520
A39: 33 | B39: Сахар-песок | C39: 2500 | D39: 78.4 | E39: 196000
A40: 34 | B40: Кофейный напиток | C40: 100 | D40: 343.6 | E40: 34360
A41: 35 | B41: Какао | C41: 100 | D41: 263.1 | E41: 26310
A42: 36 | B42: Чай | C42: 100 | D42: 494.8 | E42: 49480
A43: 37 | B43: Дрожжи хлебопекарные | C43: 20 | D43: 1107.5 | E43: 22150
A44: 38 | B44: Пшено вес. | C44: 500 | D44: 50.5 | E44: 25250
A45: 39 | B45: Круна манная | C45: 500 | D45: 52.9 | E45: 26450
A46: 40 | B46: Крупа гречневая | C46: 500 | D46: 137.7 | E46: 68850
A47: 41 | B47: Геркулес | C47: 500 | D47: 52.3 | E47: =C47*D47 -> 26150
A48: 42 | B48: Рис | C48: 500 | D48: 77.8 | E48: =C48*D48 -> 38900
A49: 43 | B49: Горох | C49: 300 | D49: 53.4 | E49: 16020
A50: 44 | B50: Вермишель | C50: 500 | D50: 60 | E50: 30000
A51: 45 | B51: Макаронные изделия | C51: 500 | D51: 60 | E51: 30000
A52: 46 | B52: Печенье | C52: 450 | D52: 98.1 | E52: 44145
A53: 47 | B53: Конфеты шоколадные | C53: 350 | D53: 214.8 | E53: 75180
A54: 48 | B54: Вафли | C54: 450 | D54: 171.6 | E54: 77220
A55: 49 | B55: Соль йодированная | C55: 500 | D55: 13.4 | E55: 6700
A56: 50 | B56: Крахмал | C56: 100 | D56: 103.7 | E56: 10370
A57: 51 | B57: Перец горошком | C57: 31.25 | D57: 1500 | E57: 46875
A58: 52 | B58: Лавровый лист | C58: 31.25 | D58: 800 | E58: 25000
B59: Итого | C59: Х | D59: Х | E59: =SUM(E7:E58) -> 13237500
A63: Директор | E63: М.И. Жинько
A65: Главный бухгалтер | E65: А.А. Кирик
A68: Исполнитель:
A69: Рыбакова О.В.

Sheet 342 остат
A1: Расчет (обоснование) расходов на приобретение продуктов питания на 2022 год
A3: Код видов расходов 244 Источник финансового обеспечения: субсидии из областного бюджета на финансовое обеспечение выполнения Учреждением государственного задания на оказание государственных услуг
A5: Услуги связи (КОСГУ 342)
A6: N п/п | B6: Наименование расходов | C6: Количество | D6: Количество платежей в год | E6: Стоимость за единицу, руб. | F6: Сумма, руб. (гр. 3 x гр. 4 x гр. 5)
A7: 1 | B7: 2 | C7: 3 | D7: 4 | E7: 5 | F7: 6
A8: 1 | B8: Остаток с 2021 года | C8: Х | D8: Х | E8: 4168.61 | F8: =E8 -> 4168.61
B9: Итого: | C9: x | D9: x | E9: x | F9: =SUM(F8:F8) -> 4168.61
A11: Директор | F11: М.И. Жинько
A13: Главный бухгалтер | F13: А.А. Кирик
A14: Исполнители:
A15: Рыбакова О.В.

Sheet 345 мягкий инвент
A1: Расчет (обоснование) расходов на приобретение прочих мягкого инвентаря на 2022 год
A3: Код видов расходов 244 Источник финансового обеспечения: субсидии из областного бюджета на финансовое обеспечение выполнения Учреждением государственного задания на оказание государственных услуг
A4: Увеличение стоимости мягкого инвентаря (КОСГУ 345)
A6: Номер п/п | B6: Наименование | C6: Единица измерения | D6: Кол-во | E6: Цена (руб.) | F6: Сумма (руб.)
A9: 1 | B9: Майка | C9: шт | D9: 150 | E9: 210 | F9: =E9*D9 -> 31500
A10: 2 | B10: Трусы | C10: шт | D10: 300 | E10: 110 | F10: =E10*D10 -> 33000
A11: 3 | B11: Носки х/б | C11: пар | D11: 300 | E11: 35 | F11: 10500
A12: 4 | B12: Носки п/ш | C12: пар | D12: 150 | E12: 70 | F12: 10500
A13: 5 | B13: Колготки трикотажные | C13: пар | D13: 200 | E13: 260 | F13: 52000
A14: 6 | B14: Колготки трикотажные утепленные | C14: пар | D14: 100 | E14: 340 | F14: 34000
A15: 7 | B15: Штаны спортивные | C15: шт | D15: 60 | E15: 900 | F15: 54000
A16: 8 | B16: Штаны спортивные утепленные | C16: шт | D16: 80 | E16: 940 | F16: 75200
A17: 9 | B17: Кофта спортивная | C17: шт | D17: 60 | E17: 600 | F17: 36000
A18: 10 | B18: Кофта спортивная утепленная | C18: шт | D18: 60 | E18: 900 | F18: 54000
A19: 11 | B19: Трико | C19: шт | D19: 80 | E19: 310 | F19: 24800
A20: 12 | B20: Бейсболка | C20: шт | D20: 80 | E20: 354 | F20: 28320
A21: 13 | B21: Панама или шляпа джинсовая | C21: шт | D21: 79 | E21: 354 | F21: 27966
A22: 14 | B22: Пижама | C22: шт | D22: 80 | E22: 590 | F22: 47200
A23: 15 | B23: Футболка | C23: шт | D23: 80 | E23: 390 | F23: 31200
A24: 16 | B24: Шорты | C24: шт | D24: 100 | E24: 250 | F24: 25000
A25: 17 | B25: Юбка | C25: шт | D25: 72 | E25: 450 | F25: 32400
A26: 18 | B26: Футболка с длинным рукавом | C26: шт | D26: 80 | E26: 400 | F26: 32000
A27: 19 | B27: Штаны домашние | C27: шт | D27: 80 | E27: 400 | F27: 32000
A28: 20 | B28: Кофта или джемпер | C28: шт | D28: 90 | E28: 640 | F28: 57600
A29: 21 | B29: Джинсы | C29: шт | D29: 90 | E29: 900 | F29: 81000
A30: 22 | B30: Джинсы утепленные | C30: шт | D30: 91 | E30: 940 | F30: 85540
A31: 23 | B31: Школьная форма для девочки | C31: шт | D31: 20 | E31: 2500 | F31: 50000
A32: 24 | B32: Школьная форма для мальчика | C32: шт | D32: 20 | E32: 2500 | F32: 50000
A33: 25 | B33: Платье | C33: шт | D33: 60 | E33: 750 | F33: 45000
A34: 26 | B34: Ветровка | C34: шт | D34: 80 | E34: 1100 | F34: 88000
A35: 27 | B35: Куртка зимняя мужская | C35: шт | D35: 55 | E35: 1980 | F35: 108900
A36: 28 | B36: Куртка зимняя женская | C36: шт | D36: 50 | E36: 1980 | F36: 99000
A37: 29 | B37: Кроссовки | C37: пар | D37: 110 | E37: 600 | F37: 66000
A38: 30 | B38: Туфли женские | C38: пар | D38: 55 | E38: 850 | F38: 46750
A39: 31 | B39: Туфли мужские | C39: пар | D39: 50 | E39: 850 | F39: 42500
A40: 32 | B40: Ботинки демисезонные | C40: пар | D40: 90 | E40: 950 | F40: 85500
A41: 33 | B41: Ботинки зимние | C41: пар | D41: 90 | E41: 1200 | F41: 108000
A42: 34 | B42: Сандали | C42: пар | D42: 90 | E42: 560 | F42: 50400
A43: 35 | B43: Тапочки или сланцы | C43: пар | D43: 90 | E43: 210 | F43: 18900
A44: 36 | B44: Шапка демисезонная | C44: шт | D44: 90 | E44: 300 | F44: 27000
A45: 37 | B45: Шапка зимняя | C45: шт | D45: 90 | E45: 310 | F45: 27900
A46: 38 | B46: Простыня | C46: шт | D46: 100 | E46: 222.2 | F46: 22220
A47: 39 | B47: Пододеяльник | C47: шт | D47: 100 | E47: 366.4 | F47: 36640
A48: 40 | B48: Наволочка | C48: шт | D48: 100 | E48: 79.9 | F48: 7990
A49: 41 | B49: Бюстгалтер | C49: шт | D49: 50 | E49: 410 | F49: 20500
A50: 42 | B50: Водолазка | C50: шт | D50: 95 | E50: 500 | F50: 47500
A51: 43 | B51: Полотенце махровое большое | C51: шт | D51: 130 | E51: 257.24605 | F51: 33441.9865
A52: 44 | B52: Полотенце махровое маленькое | C52: шт | D52: 130 | E52: 83.2 | F52: 10816
A53: 45 | B53: Сапоги резиновые | C53: пар | D53: 40 | E53: 349.8504 | F53: 13994.016
B54: Итого | C54: Х | D54: Х | E54: Х | F54: =SUM(F9:F53) -> 2002678.003
A56: Директор | F56: М.И.Жинько
A59: Главный бухгалтер | F59: А.А. Кирик
A61: Исполнитель:
A62: Рыбакова О.В.

Sheet 343 гсм
A2: Расчет (обоснование) расходов на приобретение горюче-смазочных материалов на 2022 год
A4: Код видов расходов 244 Источник финансового обеспечения: субсидии из областного бюджета на финансовое обеспечение выполнения Учреждением государственного задания на оказание государственных услуг
A6: Увеличение стоимости горюче-смазочных материалов (КОСГУ 343)
A8: № п/п | B8: Наименование расходов | C8: Кол-во на год, л | D8: Средняя стоимость, руб | E8: Сумма, руб
A10: 1 | B10: Бензин АИ-92 (Автомобиль HYNDAI SOLARIS М 263 АС) | C10: 2650 | D10: 47.9 | E10: =C10*D10 -> 126935
A11: =A10+1 -> 2 | B11: Бензин АИ-92 (Автомобиль ГАЗ-32212-260 М 606 ТХ вишневая) | C11: 1140 | D11: 47.9 | E11: =C11*D11 -> 54606
A12: =A11+1 -> 3 | B12: Бензин АИ-92 (Автобус ПАЗ -3320302-08 Н 862 РХ) | C12: 300 | D12: 47.9 | E12: =C12*D12 -> 14370
A13: =A12+1 -> 4 | B13: Бензин АИ -95 (Автомобиль "VOLKSWAGEN TIGUAN" М 483 | C13: 2600 | D13: 51.1820692 | E13: 133073.3799
A14: 6 | B14: Топливо дизельное (Автомобиль ГАЗ-САЗ-35071 К 482 СС) | C14: 150 | D14: 49.9 | E14: 7485
A15: 7 | B15: Топливо дизельное (Грузобортовая-фермер К 483 СС) | C15: 800 | D15: 49.9 | E15: 39920
A16: 8 | B16: Масло промывочное LUX-OIL (5л) | C16: 4 | D16: 535.4725 | E16: 2141.89
A17: 9 | B17: Масло моторное 5W40 синтетика VAG SPECIAL PLUS(1Л) | C17: 25 | D17: 858.7491667 | E17: 21468.72917
B18: Итого | C18: Х | D18: Х | E18: =SUM(E10:E17) -> 399999.9991
A22: Директор | E22: М.И. Жинько
A24: Главный бухгалтер | E24: А.А. Кирик
A26: Исполнитель:
A27: Рыбакова О.В.

Sheet 343 остаток
A2: Расчет (обоснование) расходов на приобретение горюче-смазочных материалов на 2022 год
A4: Код видов расходов 244 Источник финансового обеспечения: субсидии из областного бюджета на финансовое обеспечение выполнения Учреждением государственного задания на оказание государственных услуг
A6: Увеличение стоимости горюче-смазочных материалов (КОСГУ 343)
A8: № п/п | B8: Наименование расходов | C8: Кол-во на год, л | D8: Средняя стоимость, руб | E8: Сумма, руб
A10: 1 | B10: Остаток за декабрь 2021 года | C10: 41,95555 | D10: 45 | E10: =C10*D10 -> 1887.99975
B11: Итого | C11: Х | D11: Х | E11: =SUM(E9:E10) -> 1887.99975
A14: Директор | E14: М.И. Жинько
A16: Главный бухгалтер | E16: А.А. Кирик
A19: Исполнитель:
A20: Рыбакова О.В.

Sheet 227 страх
A1: Расчет (обоснование) расходов на оплату страхования на 2022 год
A2: Код видов расходов 244 Источник финансового обеспечения: субсидии из областного бюджета на финансовое обеспечение выполнения Учреждением государственного задания на оказание государственных услуг
A4: Страхование (КОСГУ 227)
A5: N п/п | B5: Наименование расходов | C5: Объект | D5: Количество договоров | E5: Стоимость работ (услуг), руб.
A6: 1 | B6: 2 | C6: 3 | D6: 4 | E6: 5
A7: 1 | B7: ОСАГО Хендай Солярис | C7: 1 | D7: 1 | E7: 6754.51
A8: =A7+1 -> 2 | B8: ОСАГО ГАЗ 32212 | C8: 1 | D8: 1 | E8: 6361.01
A9: 3 | B9: ОСАГО ПАЗ 320302-08 | C9: 1 | D9: 1 | E9: 10969.05
A10: 4 | B10: ОСАГО ГАЗ САЗ | C10: 1 | D10: 1 | E10: 11296.49
A11: 5 | B11: ОСАГО Фольксваген Тигуан | C11: 1 | D11: 1 | E11: 7698.55
A12: 6 | B12: ОСАГО ГАЗ32212 М 606 ТХ | C12: 1 | D12: 1 | E12: 7020.39
A13: 7 | B13: Обязательное страхование опасных объектов | C13: 1 | D13: 1 | E13: 9900
B14: Итого: | C14: Х | D14: Х | E14: =SUM(E7:E13) -> 60000
A19: Директор | E19: М.И. Жинько
A21: Главный бухгалтер | E21: А.А. Кирик
A24: Исполнители:
A25: Рыбакова О.В.

Sheet 344 строймат
A1: Расчет (обоснование) расходов на приобретение строительных материалов на 2022 год
A3: Код видов расходов 244 Источник финансового обеспечения: субсидии из областного бюджета на финансовое обеспечение выполнения Учреждением государственного задания на оказание государственных услуг
A5: Увеличение стоимости строительных материалов (КОСГУ 344)
A7: № п/п | B7: Наименование расходов | C7: Кол-во на год | D7: Средняя стоимость, руб | E7: Сумма, руб
A9: 1 | B9: Краска супербелая (14 кг) моющая водоэмульсионная | C9: 6 | D9: 2100 | E9: =C9*D9 -> 12600
A10: 2 | B10: Краска супербелая (14 кг) моющая водоэмульсионная | C10: 5 | D10: 2100 | E10: 10500
A11: 3 | B11: Грунтовка EK G 100 10л | C11: 6 | D11: 1280 | E11: =D11*C11 -> 7680
A12: 6 | B12: Линолеум пк | C12: 60 | D12: 843.7 | E12: 50622
A13: 7 | B13: Клей для линолеума | C13: 1 | D13: 1522 | E13: 1522
A14: 8 | B14: Плинтус | C14: 8 | D14: 357 | E14: 2856
A15: 9 | B15: Выключатель | C15: 8 | D15: 270 | E15: 2160
A16: 10 | B16: Розетка сп | C16: 12 | D16: 285 | E16: 3420
A17: 11 | B17: Шпаклевка | C17: 2 | D17: 481 | E17: =D17*C17 -> 962
A18: 12 | B18: Кранбукса | C18: 10 | D18: 140 | E18: =D18*C18 -> 1400
A19: 13 | B19: Ротбанд | C19: 1 | D19: 478 | E19: =D19*C19 -> 478
A20: 14 | B20: Плиточный клей | C20: 2 | D20: 400 | E20: =D20*C20 -> 800
A21: 15 | B21: Линокром | C21: 88 | D21: 2223 | E21: =C21*D21 -> 195624
A22: 16 | B22: Праймер битумный | C22: 7 | D22: 3050 | E22: =C22*D22 -> 21350
A23: 17 | B23: Труба PN 20 90 х (15) бел РТП | C23: 20 | D23: 2 520,00 | E23: 50 400,00
A24: 18 | B24: Угольник 90/90 бел РТП | C24: 5 | D24: 488,00 | E24: 2 440,00
A25: 19 | B25: Муфта 90 бел РТП | C25: 4 | D25: 411,00 | E25: 1 644,00
A26: 20 | B26: Бурт под фланец 90 бел РТП | C26: 4 | D26: 395,00 | E26: 1 580,00
A27: 21 | B27: Фланец ду 100х10 атм | C27: 4 | D27: 842,00 | E27: 3 368,00
A28: 22 | B28: Тройник перех 90 х 50 х 90 бел Berke | C28: 2 | D28: 640,00 | E28: 1 280,00
A29: 23 | B29: Угольник 90/50 бел РТП | C29: 2 | D29: 142,00 | E29: 284,00
A30: 24 | B30: Кран шаровый 50 бел РТП | C30: 2 | D30: 1 411,00 | E30: 2 822,00
A31: 25 | B31: Фильтр косой 1 1/2" | C31: 1 | D31: 1 974,00 | E31: 1 974,00
A32: 26 | B32: Муфта комб под ключ н р 50 х 1 1/2" бел РТП | C32: 2 | D32: 690,00 | E32: 1 380,00
A33: 27 | B33: Труба PN 20 50 х (8,4) бел РТП | C33: 4 | D33: 562,00 | E33: 2 248,00
A34: 28 | B34: Клапан обратный 1 1/2" | C34: 1 | D34: 1 320,30 | E34: 1320.5
A35: 29 | B35: Кран шар 1/2 в/н | C35: 6 | D35: 346 | E35: =D35*C35 -> 2076
A36: 30 | B36: Кран шар 1/2 в/в | C36: 12 | D36: 346 | E36: 4152
A37: 31 | B37: Стекло 4мм | C37: 200.6 | D37: 550 | E37: 110330
A38: 32 | B38: Линолеум пк | C38: 120 | D38: 910 | E38: 109200
A39: 33 | B39: Клей для линолеума | C39: 2 | D39: 2850 | E39: 5700
A40: 34 | B40: Лампы люминисцентные 18 вт | C40: 100 | D40: 140 | E40: 14000
A41: 35 | B41: Лампы светодиодные | C41: 50 | D41: 135 | E41: 6750
A42: 36 | B42: Светильник светодиодный 600*600 | C42: 23 | D42: 1282.5 | E42: 29497.5
A43: 37 | B43: Светильник светодиодный 595*595*19 | C43: 15 | D43: 1420.33 | E43: 21304.95
A44: 38 | B44: Светильник герметичный под светодиодные лампы 1200 | C44: 20 | D44: 1460 | E44: 29200
A45: 39 | B45: Лампа светодиодная | C45: 40 | D45: 233.67 | E45: 9346.8
A46: 40 | B46: Зажим клеммный лепестковый | C46: 1 | D46: 1394 | E46: 1394
A47: 41 | B47: Кран шар | C47: 4 | D47: 773.47 | E47: 3093.88
A48: 42 | B48: Кран шар | C48: 2 | D48: 147.5 | E48: 295
A49: 43 | B49: Контргайка | C49: 4 | D49: 129.97 | E49: 519.88
A50: 44 | B50: Муфта Ду 20 | C50: 4 | D50: 116.63 | E50: 466.52
A51: 45 | B51: Муфта Ду 15 | C51: 2 | D51: 108.44 | E51: 216.88
A52: 46 | B52: Отвод | C52: 6 | D52: 881.5 | E52: 5289
A53: 47 | B53: Сгон | C53: 4 | D53: 166.67 | E53: 666.68
A54: 48 | B54: Труба | C54: 0.022 | D54: 96777.78 | E54: 2129.11116
A55: 49 | B55: Труба | C55: 0.756 | D55: 90194.44 | E55: 68186.99664
A56: 50 | B56: Кирпич силикатный | C56: 336 | D56: 41.27 | E56: 13866.72
A57: 51 | B57: Стеклоизол | C57: 3 | D57: 2463 | E57: 7389
A58: 52 | B58: Уголок | C58: 6 | D58: 1045.8 | E58: 6274.8
A59: 53 | B59: Кирпич силикатный | C59: 1008 | D59: 22.3 | E59: 22478.4
A60: 54 | B60: Сухая смесь (наливной пол) | C60: 12 | D60: 783.67 | E60: 9404.04
A61: 55 | B61: Грунтовка EK 100 10л | C61: 2 | D61: 1515.33 | E61: 3030.66
A62: 56 | B62: Цемент | C62: 7 | D62: 501.33 | E62: 3509.31
A63: 57 | B63: Известь негашеная | C63: 160 | D63: 61.1 | E63: 9776
A64: 58 | B64: Эмаль ПФ-115 желтая | C64: 75 | D64: 245.5 | E64: 18412.5
A65: 59 | B65: Эмаль ПФ-115 зеленая | C65: 75 | D65: 237.17 | E65: =D65*C65 -> 17787.75
A66: 60 | B66: Эмаль ПФ-115 вишневая | C66: 75 | D66: 245.65 | E66: =D66*C66 -> 18423.75
A67: 61 | B67: Краска АК-511, дорожная белая | C67: 75 | D67: 238.97 | E67: 17922.75
A68: 62 | B68: Краска АК-511, дорожная желтая | C68: 25 | D68: 216.83 | E68: 5420.75
A69: 63 | B69: Эмаль ПФ-115 белая | C69: 34 | D69: 270.40794 | E69: 9193.86996
B70: Итого | C70: Х | D70: Х | E70: =SUM(E9:E69) -> 899999.9978
A74: Директор | E74: М.И. Жинько
A76: Главный бухгалтер | E76: А.А. Кирик
A78: Исполнитель:
A79: Рыбакова О.В.

Sheet 341
A1: Расчет (обоснование) расходов на приобретение лекарственных препаратов и материалов, применяемых в медицинских целях на 2022 год
A3: Код видов расходов 244 Источник финансового обеспечения: субсидии из областного бюджета на финансовое обеспечение выполнения Учреждением государственного задания на оказание государственных услуг
A5: Увеличение стоимости лекарственных препаратов и материалов, применяемых в медицинских целях (КОСГУ 341)
A6: № п/п | B6: Наименование расходов | C6: Единица измерения | D6: Кол-во на год | E6: Средняя стоимость, руб | F6: Сумма, руб
A7: 1 | B7: Вакцина против гипатита А (аваксим) | C7: упак | D7: 18 | E7: 1300 | F7: 23400
A8: 2 | B8: L - тироксин 50 табл. 50 мкг № 50 уп. контурн.яч.пачк.карт | C8: уп | D8: 25 | E8: 109 | F8: =D8*E8 -> 2725
A9: 3 | B9: Амоксиклав 500 мл. | C9: упак. | D9: 25 | E9: 306.23 | F9: =D9*E9 -> 7655.75
A10: 4 | B10: Ацикловир мазь 5%- 5гр. | C10: шт | D10: 25 | E10: 39.38 | F10: =D10*E10 -> 984.5
A11: 5 | B11: Анальгин р-р для в/в и в/м введ. 500 мг/мл амп. светозащ.стекла 2 мл № 10 уп. | C11: упак | D11: 25 | E11: 69.82 | F11: 1745.5
A12: =A11+1 -> 6 | B12: Анальгин табл. 500 мг № 10 уп. | C12: упак | D12: 100 | E12: 14.52 | F12: 1452
A13: 7 | B13: Анаферон детский табл.д/рассас. № 20 уп. | C13: шт | D13: 100 | E13: 299.66 | F13: 29966
A14: =A13+1 -> 8 | B14: Арбидол капс. 50 мг №20 | C14: упак | D14: 40 | E14: 372 | F14: 14880
A15: 9 | B15: Имброксол сироп | C15: шт | D15: 15 | E15: 58 | F15: 870
A16: 10 | B16: Суммамокс №3 | C16: упак | D16: 25 | E16: 183.62 | F16: 4590.5
A17: 11 | B17: Бисопролол табл.п.п.о. 5мг. №30 | C17: упак | D17: 25 | E17: 169.94 | F17: 4248.5
A18: 12 | B18: Бриллиантовый зеленый р-р д/наружн. прим. спиртовой 1% фл.темн. стекл. 10 мл. №1 | C18: шт | D18: 40 | E18: 28 | F18: 1120
A19: 13 | B19: Бромгексин табл 0,008 г № 25 | C19: упак | D19: 50 | E19: 64.85 | F19: 3242.5
A20: 14 | B20: Бисептол 480 мг. | C20: упак | D20: 20 | E20: 92.91 | F20: 1858.2
A21: =A20+1 -> 15 | B21: Дротаверин табл №50 | C21: упак | D21: 20 | E21: 84.86 | F21: 1697.2
A22: 16 | B22: Диклофенак р-р | C22: упак | D22: 20 | E22: 72.15 | F22: 1443
A23: 17 | B23: Диклофенак мазь д/наружн. прим.1% туба алюм. 30 г. № 1 | C23: шт | D23: 20 | E23: 44.33 | F23: 886.6
A24: 18 | B24: Кортинефф табл. 0,1 мг.фл.темн.стекл.№20 | C24: упак | D24: 40 | E24: 223.92 | F24: 8956.8
A25: 19 | B25: Индапамид ретард табл. п.п.о. 1,5 мг.№ 30 | C25: шт | D25: 20 | E25: 79.6 | F25: 1592
A26: 20 | B26: Йод раствор 5% д/наружн примен спиртовой 10мл | C26: флак | D26: 20 | E26: 37.28 | F26: 745.6
A27: 21 | B27: Леветинол р-р д/приема внутрь 100 мг/мл фл. 300 мл № 1 | C27: упак | D27: 6 | E27: 1680 | F27: 10080
A28: 22 | B28: Кальция глюконат р-р для в/в и в/м введ. 100 мг/мл амп. 5 мл №10 | C28: упак | D28: 12 | E28: 127.18 | F28: 1526.16
A29: 23 | B29: Каптоприл табл. 25 мг.№ 40 | C29: шт | D29: 10 | E29: 143.58 | F29: 1435.8
A30: 24 | B30: Бифидумбактерин пор. №10 | C30: уп | D30: 8 | E30: 120 | F30: 960
A31: 25 | B31: Клотримазол крем д/ наруж. прим. 1% туба алюм 20 гр № 1 | C31: шт | D31: 5 | E31: 187 | F31: 935
A32: 26 | B32: Конвулекс табл. п.п.о. пролонг 300 мг фл. ПЭ №50 . | C32: упак | D32: 100 | E32: 393.12 | F32: 39312
A33: 27 | B33: Крем детский 45 мл №1 | C33: шт | D33: 15 | E33: 85.17 | F33: 1277.55
A34: 28 | B34: Бензилбензонат мазь | C34: шт | D34: 15 | E34: 86 | F34: 1290
A35: 29 | B35: Левометил мазь д/наруж.прим. 30 г туба алюм № 1 | C35: шт | D35: 25 | E35: 92.15 | F35: 2303.75
A36: 30 | B36: Лоперамид табл. 2 мг. № 20 | C36: шт | D36: 40 | E36: 56.52 | F36: 2260.8
A37: 31 | B37: Магния сульфат р-р для в/в и в/м введ. 250 мг/мл амп. 5мл №10 | C37: упак | D37: 30 | E37: 49.06 | F37: 1471.8
A38: 32 | B38: Метрогил Дента гель стомотологич.туба пластик. 20 г.№1 | C38: шт | D38: 20 | E38: 373.15 | F38: 7463
A39: 33 | B39: Мирамистин р-р д/местн.прим. 0,01% фл. ПЭ 150 мл с распылителем № 1 пачк. крат. | C39: шт | D39: 15 | E39: 518.01 | F39: 7770.15
A40: 34 | B40: Новорапид шприц ручка№5 3,0 мл. | C40: упак | D40: 10 | E40: 1800.8 | F40: 18008
A41: 35 | B41: Ново-пассит р-р д/приема внутрь фл.темн.стекло с мерн. колпачком 100 мл №1 | C41: шт | D41: 25 | E41: 388.4 | F41: 9710
A42: 36 | B42: Нафтизин 0,01% 15 мл. | C42: шт. | D42: 100 | E42: 11.83 | F42: 1183
A43: 37 | B43: Новокаин р-р д/ инъекц. 0,5 % амп.ПЭ 5 мл №10 | C43: упак | D43: 50 | E43: 26.9 | F43: 1345
A44: 38 | B44: Паглюферал - 2 табл.№ 20 | C44: упак | D44: 40 | E44: 118.49 | F44: 4739.6
A45: 39 | B45: Пиридоксин р-р 1,0мл. №10 | C45: уп | D45: 25 | E45: 48.12 | F45: 1203
A46: 40 | B46: Перекись водорода 3% (100 мл. фл. п/пропилен. №1 Дез.средство) | C46: шт | D46: 60 | E46: 42.89 | F46: 2573.4
A47: 41 | B47: Преднизалон табл. 5 мг фл. п/ пропилен № 100 пачк. | C47: упак | D47: 20 | E47: 109.94 | F47: 2198.8
A48: 42 | B48: Синафлан мазь д/наруж. прим. 0,025 % туба алюм.15г. № 1 | C48: шт | D48: 25 | E48: 95.35 | F48: 2383.75
A49: 43 | B49: Аргосульфан мазь д/наружного применения 20 гр | C49: туба | D49: 10 | E49: 180.24 | F49: 1802.4
A50: 44 | B50: Хлоропирамин р-р для в/в и в/м введ. 20 мг/мл амп. 1 мл. № 5 | C50: упак | D50: 20 | E50: 84.2 | F50: 1684
A51: 45 | B51: Метокпромид 10 мг. №50 | C51: упак | D51: 4 | E51: 772.35 | F51: 3089.4
A52: 46 | B52: Фурамин 50 мг. №30 | C52: упак | D52: 12 | E52: 284.87 | F52: 3418.44
A53: 47 | B53: Тиамин р-р 1,0 мл. №10 | C53: упак | D53: 25 | E53: 39.1 | F53: 977.5
A54: 48 | B54: Тетрациклиновая мазь глаз 1% туба 5 г №1 | C54: упак | D54: 10 | E54: 108.17 | F54: 1081.7
A55: 49 | B55: Топирамат Канон табл. п.п.о. 25 мг № 28 | C55: шт | D55: 200 | E55: 195.47 | F55: 39094
A56: 50 | B56: Трилептал сусп. д/приема внутрь 60 мг/мл. фл.темн.стекл.100 мл. в компл.с адаптер.шприц №1 | C56: шт | D56: 20 | E56: 398 | F56: 7960
A57: 51 | B57: Фурацилин табл. д/ р-ра д/мест. и наруж. прим. 20 мг. № 10 | C57: шт | D57: 20 | E57: 82.77 | F57: 1655.4
A58: 52 | B58: Хлоропирамин табл. 25 мг. № 20 | C58: упак | D58: 40 | E58: 97.02 | F58: 3880.8
A59: 53 | B59: Цефтриаксон пор.д/р-ра для в/в и в/м введ 1г фл № 1 | C59: шт | D59: 150 | E59: 54.35 | F59: 8152.5
A60: 54 | B60: Цифлоксацин 500 мг. №10 | C60: упак. | D60: 25 | E60: 68.16 | F60: 1704
A61: 55 | B61: Эналаприл табл. 5 мг № 20 | C61: шт | D61: 15 | E61: 50.9 | F61: 763.5
A62: 56 | B62: Альмагель сусп 170 мл | C62: шт | D62: 10 | E62: 298 | F62: 2980
A63: 57 | B63: Валокардин 20 мл | C63: шт | D63: 15 | E63: 114.38 | F63: 1715.7
A64: 58 | B64: Назонекс спрей №120 доз | C64: шт | D64: 25 | E64: 760 | F64: 19000
A65: 59 | B65: Панкреатин 25 ед. №60 | C65: упак. | D65: 40 | E65: 97.93 | F65: 3917.2
A66: 60 | B66: Энтеросгель паста д/приема внутрь туба из комб. материала 225 г. №1 | C66: шт | D66: 10 | E66: 496 | F66: 4960
A67: 61 | B67: Бинт марлевый ОП нестер. 5м*10 см пл 32г/м2 №1 | C67: шт. | D67: 400 | E67: 26.75 | F67: 10700
A68: 62 | B68: Вата (50 гр) нестерильная | C68: упак | D68: 40 | E68: 32 | F68: 1280
A69: 63 | B69: Перчатки смотровые нестер.латексн.неопудр текстур. №50 | C69: упак | D69: 30 | E69: 1300 | F69: 39000
A70: 64 | B70: Салфетка антисептическая спиртовая 70% этил.60 мм/100 мм №100 | C70: шт | D70: 40 | E70: 500 | F70: 20000
A71: 65 | B71: Тест - полоски Акку-чек актив для опред.глюкозы в крови № 50 | C71: шт | D71: 40 | E71: 1360.44 | F71: 54417.6
A72: 66 | B72: Шприц мед. инъекц. ОП 10 мл №1 | C72: шт | D72: 200 | E72: 9 | F72: 1800
A73: 67 | B73: Шприц мед. инъекц. ОП 2 мл №1 | C73: шт | D73: 800 | E73: 5.6 | F73: 4480
A74: 68 | B74: Шприц с иглой 5 мл | C74: шт | D74: 700 | E74: 9.8 | F74: =D74*E74 -> 6860
A75: 69 | B75: Шприц туберкулин | C75: шт | D75: 800 | E75: 9.8 | F75: 7840
A76: =A75+1 -> 70 | B76: Маска медицинская №50 | C76: шт. | D76: 25 | E76: 154 | F76: 3850
A77: 71 | B77: Аминазин р-р для в/в и в/м введ. 25 мг/мл амп. 2 мл №10 пачк.карт. | C77: упак. | D77: 25 | E77: 220.05 | F77: 5501.25
A78: 72 | B78: Аминазин табл. п.п.о. 25 мг № 10 | C78: упак. | D78: 310 | E78: 198.66 | F78: 61584.6
A79: 73 | B79: Аминазин табл. п.п.о. 50 мг № 10 | C79: упак. | D79: 300 | E79: 332.78 | F79: 99834
A80: 74 | B80: Галоперидол р-р 30 мл. | C80: шт | D80: 20 | E80: 98 | F80: 1960
A81: 75 | B81: Галоперидол табл. 5 мг № 50 | C81: упак | D81: 30 | E81: 86.09 | F81: 2582.7
A82: 76 | B82: Клопиксол табл.п.п.о. 10 мг.№ 50 конт. пласт. пачк.карт | C82: упак | D82: 30 | E82: 350.97 | F82: 10529.1
A83: 77 | B83: Клопиксол табл.п.п.о. 2 мг.№ 50 | C83: упак | D83: 50 | E83: 120.33 | F83: 6016.5
A84: 78 | B84: Мендилекс табл. 2 мг № 50 | C84: упак | D84: 70 | E84: 213.66 | F84: 14956.2
A85: 79 | B85: Неулептил р/р д/ приема внутрь 4% фл.темн. стекл. 125 мл | C85: упак | D85: 30 | E85: 1503.2 | F85: 45096
A86: 80 | B86: Неулептил капс.10 мг № 50 | C86: упак | D86: 60 | E86: 282.73 | F86: 16963.8
A87: 81 | B87: Рисперидон табл. п.п.о 2 мг № 20 уп. | C87: упак | D87: 100 | E87: 230.89 | F87: 23089
A88: 82 | B88: Сонапакс табл, п.о.10 мг № 60 | C88: упак | D88: 80 | E88: 370.54 | F88: 29643.2
A89: 83 | B89: Сонапакс табл. п.о. 25 мг № 60 уп. | C89: упак | D89: 250 | E89: 408.6 | F89: 102150
A90: 84 | B90: Атаракс 25 мг. №25 | C90: упак. | D90: 14 | E90: 107.1 | F90: 1499.4
A91: 85 | B91: ПК-Мерц 100 мг. №30 | C91: упак. | D91: 15 | E91: 348.16 | F91: 5222.4
A92: 86 | B92: Энкорат-хроно 500мг. №30 | C92: упак. | D92: 130 | E92: 209.65 | F92: 27254.5
A93: 87 | B93: Зертал 200 мг.№30 | C93: упак. | D93: 150 | E93: 85.3 | F93: 12795
A94: 88 | B94: Роккона 50 мг. №15 | C94: упак. | D94: 41 | E94: 628.17 | F94: 25754.97
A95: 89 | B95: Тиапридал табл. 100 мг № 20 | C95: упак | D95: 25 | E95: 1422.7 | F95: =D95*E95 -> 35567.5
A96: 90 | B96: Хлоропротиксен 50 мг. №30 | C96: упак | D96: 10 | E96: 370.214 | F96: 3702.14
A97: 91 | B97: Амитриптилин 25 мг. №50 | C97: упак | D97: 20 | E97: 80.18 | F97: 1603.6
A98: 91 | B98: Азалептин табл. 25 мг № 50 | C98: упак | D98: 100 | E98: 528.47 | F98: 52847
A99: 92 | B99: Азалептин табл. 100 мг № 50 | C99: упак | D99: 57 | E99: 1559.69 | F99: 88902.33
A100: 93 | B100: Бисептол 480мг №14 | C100: упак | D100: 20 | E100: 87.61 | F100: 1752.2
A101: 94 | B101: Депакин Хроно 300мг №100 | C101: упак | D101: 15 | E101: 432.25 | F101: 6483.75
A102: 95 | B102: Комфодерм 15гр | C102: упак | D102: 15 | E102: 303.83 | F102: 4557.45
A103: 96 | B103: Но-шпа 20мг/мл 2мл №5 | C103: упак | D103: 20 | E103: 464.57 | F103: =D103*E103 -> 9291.4
A104: 97 | B104: Акридерм ГК крем | C104: упак | D104: 10 | E104: 452.9 | F104: 4529
A105: 98 | B105: Кагоцел №20 | C105: упак | D105: 30 | E105: 517.83 | F105: 15534.9
A106: 99 | B106: Тизерцин 25мг №50 | C106: упак | D106: 30 | E106: 1892.02 | F106: 56760.6
A107: 100 | B107: Кларитромицин500мг №10 | C107: упак | D107: 15 | E107: 377.52 | F107: 5662.8
A108: 101 | B108: Индапамид 1,5мг №30 | C108: упак | D108: 33 | E108: 91.4654 | F108: 3018.3582
B109: Итого: | C109: х | D109: х | E109: х | F109: =SUM(F7:F108) -> 1276199.998
A113: Директор | F113: М.И. Жинько
A115: Главный бухгалтер | F115: А.А. Кирик
A117: Исполнители:
A118: Рыбакова О.В.

Sheet Лист1
A1: Расчет (обоснование) расходов на приобретение прочих мягкого инвентаря на 2021 год
A3: Код видов расходов 244 Источник финансового обеспечения: субсидии из областного бюджета на финансовое обеспечение выполнения Учреждением государственного задания на оказание государственных услуг
A4: Увеличение стоимости мягкого инвентаря (КОСГУ 345)
A6: Номер п/п | B6: Наименование | C6: Единица измерения | D6: Кол-во | E6: Цена (руб.) | F6: Сумма (руб.)
A9: 1 | B9: Майка | C9: шт | D9: 303 | E9: 210 | F9: =E9*D9 -> 63630
A10: 2 | B10: Трусы | C10: шт | D10: 1500 | E10: 110 | F10: =E10*D10 -> 165000
A11: 3 | B11: Носки х/б | C11: пар | D11: 1500 | E11: 35 | F11: 52500
A12: 4 | B12: Носки п/ш | C12: пар | D12: 300 | E12: 70 | F12: 21000
A13: 5 | B13: Колготки трикотажные | C13: пар | D13: 1000 | E13: 260 | F13: 260000
A14: 6 | B14: Колготки трикотажные утепленные | C14: пар | D14: 300 | E14: 340 | F14: 102000
A15: 7 | B15: Штаны спортивные | C15: шт | D15: 150 | E15: 900 | F15: 135000
A16: 8 | B16: Штаны спортивные утепленные | C16: шт | D16: 150 | E16: 940 | F16: 141000
A17: 9 | B17: Кофта спортивная | C17: шт | D17: 150 | E17: 600 | F17: 90000
A18: 10 | B18: Кофта спортивная утепленная | C18: шт | D18: 150 | E18: 900 | F18: 135000
A19: 11 | B19: Трико | C19: шт | D19: 299 | E19: 310 | F19: 92690
A20: 12 | B20: Бейсболка | C20: шт | D20: 100 | E20: 354 | F20: 35400
A21: 13 | B21: Панама или шляпа джинсовая | C21: шт | D21: 100 | E21: 354 | F21: 35400
A22: 14 | B22: Пижама | C22: шт | D22: 150 | E22: 590 | F22: 88500
A23: 15 | B23: Футболка | C23: шт | D23: 150 | E23: 390 | F23: 58500
A24: 16 | B24: Шорты | C24: шт | D24: 300 | E24: 250 | F24: 75000
A25: 17 | B25: Юбка | C25: шт | D25: 71 | E25: 450 | F25: 31950
A26: 18 | B26: Футболка с длинным рукавом | C26: шт | D26: 150 | E26: 400 | F26: 60000
A27: 19 | B27: Штаны домашние | C27: шт | D27: 150 | E27: 400 | F27: 60000
A28: 20 | B28: Кофта или джемпер | C28: шт | D28: 300 | E28: 640 | F28: 192000
A29: 21 | B29: Джинсы | C29: шт | D29: 150 | E29: 900 | F29: 135000
A30: 22 | B30: Джинсы утепленные | C30: шт | D30: 141 | E30: 940 | F30: 132540
A31: 23 | B31: Школьная форма для девочки | C31: шт | D31: 20 | E31: 2500 | F31: 50000
A32: 24 | B32: Школьная форма для мальчика | C32: шт | D32: 20 | E32: 2500 | F32: 50000
A33: 25 | B33: Платье | C33: шт | D33: 100 | E33: 750 | F33: 75000
A34: 26 | B34: Ветровка | C34: шт | D34: 150 | E34: 1100 | F34: 165000
A35: 27 | B35: Куртка зимняя мужская | C35: шт | D35: 78 | E35: 1980 | F35: 154440
A36: 28 | B36: Куртка зимняя женская | C36: шт | D36: 72 | E36: 1980 | F36: 142560
A37: 29 | B37: Кроссовки | C37: пар | D37: 150 | E37: 600 | F37: 90000
A38: 30 | B38: Туфли женские | C38: пар | D38: 78 | E38: 850 | F38: 66300
A39: 31 | B39: Туфли мужские | C39: пар | D39: 72 | E39: 850 | F39: 61200
A40: 32 | B40: Ботинки демисезонные | C40: пар | D40: 150 | E40: 950 | F40: 142500
A41: 33 | B41: Ботинки зимние | C41: пар | D41: 150 | E41: 1200 | F41: 180000
A42: 34 | B42: Сандали | C42: пар | D42: 150 | E42: 560 | F42: 84000
A43: 35 | B43: Тапочки или сланцы | C43: пар | D43: 150 | E43: 210 | F43: 31500
A44: 36 | B44: Шапка демисезонная | C44: шт | D44: 150 | E44: 300 | F44: 45000
A45: 37 | B45: Шапка зимняя | C45: шт | D45: 150 | E45: 310 | F45: 46500
A46: 38 | B46: Простыня | C46: шт | D46: 300 | E46: 222.2 | F46: 66660
A47: 39 | B47: Пододеяльник | C47: шт | D47: 300 | E47: 366.4 | F47: 109920
A48: 40 | B48: Наволочка | C48: шт | D48: 300 | E48: 79.9 | F48: 23970
A49: 41 | B49: Бюстгалтер | C49: шт | D49: 100 | E49: 410 | F49: 41000
A50: 42 | B50: Водолазка | C50: шт | D50: 150 | E50: 500 | F50: 75000
A51: 43 | B51: Полотенце махровое большое | C51: шт | D51: 300 | E51: 259.1 | F51: 77730
A52: 44 | B52: Полотенце махровое маленькое | C52: шт | D52: 300 | E52: 83.2 | F52: 24960
A53: 45 | B53: Сапоги резиновые | C53: пар | D53: 99 | E53: 350 | F53: 34650
B54: Итого | C54: Х | D54: Х | F54: =SUM(F9:F53) -> 4000000
A56: Уменьшение лимитов - 5% | F56: 3800000
A57: Директор | F57: М.И.Жинько
A60: Главный бухгалтер | F60: А.А. Кирик
A62: Исполнитель:
A63: Рыбакова О.В.
